Workbook

Sheet 월별 참여 현황(표준중소형제주)
B2: ㅇ 월별 의무감축용량(MW)
B3: 연 | D3: 2021 | E3: 2022 | F3: 2022 | G3: 2022 | H3: 2022 | I3: 2022 | J3: 2022 | K3: 2022 | L3: 2022 | M3: 2022 | N3: 2022 | O3: 2022
B4: 월 | D4: 12 | E4: 1 | F4: 2 | G4: 3 | H4: 4 | I4: 5 | J4: 6 | K4: 7 | L4: 8 | M4: 9 | N4: 10 | O4: 11
B5: 표 준 | C5: 수도권 | D5: 589.581 | E5: 589.581 | F5: 589.581 | G5: 589.581 | H5: 589.581 | I5: 589.581 | J5: 602.616 | K5: 602.616 | L5: 586.616 | M5: 586.616 | N5: 586.616 | O5: 586.616
C6: 비수도권 | D6: 3232.646 | E6: 3232.646 | F6: 3232.646 | G6: 3232.646 | H6: 3232.646 | I6: 3232.646 | J6: 3551.56 | K6: 3551.56 | L6: 3551.56 | M6: 3551.56 | N6: 3551.56 | O6: 3551.56
B7: 중소형 | C7: 수도권 | D7: 261.369 | E7: 261.369 | F7: 261.369 | G7: 261.369 | H7: 261.369 | I7: 261.369 | J7: 269.825 | K7: 269.825 | L7: 269.046 | M7: 269.046 | N7: 269.046 | O7: 269.046
C8: 비수도권 | D8: 469.338 | E8: 469.338 | F8: 466.159 | G8: 466.159 | H8: 466.159 | I8: 466.159 | J8: 499.537 | K8: 499.537 | L8: 489.666 | M8: 489.666 | N8: 489.666 | O8: 489.666
B9: 제 주 | D9: - | E9: - | F9: - | G9: - | H9: - | I9: - | J9: - | K9: - | L9: - | M9: - | N9: - | O9: -
B10: 합 계 | D10: 4552.934 | E10: 4552.934 | F10: 4549.755 | G10: 4549.755 | H10: 4549.755 | I10: 4549.755 | J10: 4923.538 | K10: 4923.538 | L10: 4896.888 | M10: 4896.888 | N10: 4896.888 | O10: 4896.888
B12: 연 | D12: 2022 | E12: 2023 | F12: 2023 | G12: 2023 | H12: 2023 | I12: 2023 | J12: 2023 | K12: 2023 | L12: 2023 | M12: 2023 | N12: 2023 | O12: 2023
B13: 월 | D13: 12 | E13: 1 | F13: 2 | G13: 3 | H13: 4 | I13: 5 | J13: 6 | K13: 7 | L13: 8 | M13: 9 | N13: 10 | O13: 11
B14: 표 준 | C14: 수도권 | D14: 573.48 | E14: 573.48 | F14: 573.48 | G14: 573.48 | H14: 573.48 | I14: 573.48 | J14: 586.88 | K14: 586.88 | L14: 586.88 | M14: 586.88 | N14: 586.88 | O14: 586.88
C15: 비수도권 | D15: 3375.338 | E15: 3375.338 | F15: 3375.338 | G15: 3375.338 | H15: 3375.338 | I15: 3375.338 | J15: 3665.968 | K15: 3665.968 | L15: 3663.304 | M15: 3663.304 | N15: 3663.304 | O15: 3663.304
B16: 중소형 | C16: 수도권 | D16: 184.615 | E16: 184.615 | F16: 179.997 | G16: 179.997 | H16: 179.997 | I16: 179.997 | J16: 250.083 | K16: 250.083 | L16: 247.254 | M16: 247.254 | N16: 247.254 | O16: 247.254
C17: 비수도권 | D17: 250.822 | E17: 250.822 | F17: 250.822 | G17: 250.822 | H17: 250.822 | I17: 250.822 | J17: 372.14 | K17: 372.14 | L17: 365.607 | M17: 365.607 | N17: 365.607 | O17: 365.607
B18: 제 주 | D18: 37.217 | E18: 37.217 | F18: 37.217 | G18: 37.217 | H18: 37.217 | I18: 37.217 | J18: 37.217 | K18: 37.217 | L18: 32.384 | M18: 32.384 | N18: 32.384 | O18: 32.384
B19: 합 계 | D19: 4421.472 | E19: 4421.472 | F19: 4416.854 | G19: 4416.854 | H19: 4416.854 | I19: 4416.854 | J19: 4912.288 | K19: 4912.288 | L19: 4895.429 | M19: 4895.429 | N19: 4895.429 | O19: 4895.429
B21: 연 | D21: 2023 | E21: 2024 | F21: 2024 | G21: 2024 | H21: 2024 | I21: 2024 | J21: 2024 | K21: 2024 | L21: 2024 | M21: 2024 | N21: 2024 | O21: 2024
B22: 월 | D22: 12 | E22: 1 | F22: 2 | G22: 3 | H22: 4 | I22: 5 | J22: 6 | K22: 7 | L22: 8 | M22: 9 | N22: 10 | O22: 11
B23: 표 준 | C23: 수도권 | D23: 601.598 | E23: 601.598 | F23: 597.651 | G23: 597.651 | H23: 597.651 | I23: 597.651 | J23: 597.651 | K23: 597.651 | L23: 583.793 | M23: 583.793 | N23: 583.793 | O23: 583.793
C24: 비수도권 | D24: 3342.495 | E24: 3342.495 | F24: 3342.085 | G24: 3342.085 | H24: 3342.085 | I24: 3342.085 | J24: 3403.864 | K24: 3403.864 | L24: 3388.156 | M24: 3388.156 | N24: 3388.156 | O24: 3388.156
B25: 중소형 | C25: 수도권 | D25: 226.327 | E25: 226.327 | F25: 221.175 | G25: 221.175 | H25: 221.175 | I25: 221.175 | J25: 239.825 | K25: 239.825 | L25: 230.861 | M25: 230.861 | N25: 230.861 | O25: 230.861
C26: 비수도권 | D26: 350.787 | E26: 350.787 | F26: 343.982 | G26: 343.982 | H26: 343.982 | I26: 343.982 | J26: 355.782 | K26: 355.782 | L26: 320.111 | M26: 320.111 | N26: 320.111 | O26: 320.111
B27: 제 주 | D27: 33.447 | E27: 33.447 | F27: 32.311 | G27: 32.311 | H27: 32.311 | I27: 32.311 | J27: 32.311 | K27: 32.311 | L27: 32.311 | M27: 32.311 | N27: 32.311 | O27: 32.311
B28: 합 계 | D28: 4554.654 | E28: 4554.654 | F28: =SUM(F23:F27) -> 4537.204 | G28: 4537.204 | H28: 4537.204 | I28: 4537.204 | J28: 4629.433 | K28: 4629.433 | L28: 4555.232 | M28: 4555.232 | N28: 4555.232 | O28: 4555.232
B30: 연 | D30: 2024 | E30: 2025 | F30: 2025 | G30: 2025 | H30: 2025 | I30: 2025 | J30: 2025 | K30: 2025 | L30: 2025 | M30: 2025 | N30: 2025 | O30: 2025
B31: 월 | D31: 12 | E31: 1 | F31: 2 | G31: 3 | H31: 4 | I31: 5 | J31: 6 | K31: 7 | L31: 8 | M31: 9 | N31: 10 | O31: 11
B32: 표 준 | C32: 수도권 | D32: 577.853 | E32: 577.853 | F32: 577.853 | G32: 577.853 | H32: 577.853 | I32: 577.853 | J32: 575.353 | K32: 575.353 | L32: 564.353 | M32: 564.353 | N32: 564.353
C33: 비수도권 | D33: 3106.186 | E33: 3080.948 | F33: 3080.948 | G33: 3080.948 | H33: 3080.948 | I33: 3080.948 | J33: 3258.848 | K33: 3258.848 | L33: 3255.578 | M33: 3255.578 | N33: 3255.578
B34: 중소형 | C34: 수도권 | D34: 182.803 | E34: 182.803 | F34: 182.803 | G34: 182.803 | H34: 182.803 | I34: 182.803 | J34: 209.107 | K34: 209.107 | L34: 191.339 | M34: 191.339 | N34: 191.339
C35: 비수도권 | D35: 295.519 | E35: 293.417 | F35: 293.417 | G35: 293.417 | H35: 293.417 | I35: 293.417 | J35: 296.164 | K35: 296.164 | L35: 254.169 | M35: 254.169 | N35: 254.169
B36: 제 주 | D36: 35.93 | E36: 35.335 | F36: 35.335 | G36: 35.335 | H36: 35.335 | I36: 35.335 | J36: 35.335 | K36: 35.335 | L36: 33.171 | M36: 33.171 | N36: 33.171
B37: 합 계 | D37: 4198.291 | E37: 4170.356 | F37: 4170.356 | G37: 4170.356 | H37: 4170.356 | I37: 4170.356 | J37: 4374.807 | K37: 4374.807 | L37: 4298.61 | M37: 4298.61 | N37: 4298.61
B39: ㅇ 월별 수요자원 수(개)
B40: 연 | D40: 2021 | E40: 2022 | F40: 2022 | G40: 2022 | H40: 2022 | I40: 2022 | J40: 2022 | K40: 2022 | L40: 2022 | M40: 2022 | N40: 2022 | O40: 2022
B41: 월 | D41: 12 | E41: 1 | F41: 2 | G41: 3 | H41: 4 | I41: 5 | J41: 6 | K41: 7 | L41: 8 | M41: 9 | N41: 10 | O41: 11
B42: 표 준 | C42: 수도권 | D42: 12 | E42: 12 | F42: 12 | G42: 12 | H42: 12 | I42: 12 | J42: 13 | K42: 13 | L42: 12 | M42: 12 | N42: 12 | O42: 12
C43: 비수도권 | D43: 20 | E43: 20 | F43: 20 | G43: 20 | H43: 20 | I43: 20 | J43: 24 | K43: 24 | L43: 24 | M43: 24 | N43: 24 | O43: 24
B44: 중소형 | C44: 수도권 | D44: 21 | E44: 21 | F44: 21 | G44: 21 | H44: 21 | I44: 21 | J44: 23 | K44: 23 | L44: 23 | M44: 23 | N44: 23 | O44: 23
C45: 비수도권 | D45: 32 | E45: 32 | F45: 32 | G45: 32 | H45: 32 | I45: 32 | J45: 38 | K45: 38 | L45: 37 | M45: 37 | N45: 37 | O45: 37
B46: 제 주 | D46: - | E46: - | F46: - | G46: - | H46: - | I46: - | J46: - | K46: - | L46: - | M46: - | N46: - | O46: -
B47: 합 계 | D47: 85 | E47: 85 | F47: 85 | G47: 85 | H47: 85 | I47: 85 | J47: 98 | K47: 98 | L47: 96 | M47: 96 | N47: 96 | O47: 96
B49: 연 | D49: 2022 | E49: 2023 | F49: 2023 | G49: 2023 | H49: 2023 | I49: 2023 | J49: 2023 | K49: 2023 | L49: 2023 | M49: 2023 | N49: 2023 | O49: 2023
B50: 월 | D50: 12 | E50: 1 | F50: 2 | G50: 3 | H50: 4 | I50: 5 | J50: 6 | K50: 7 | L50: 8 | M50: 9 | N50: 10 | O50: 11
B51: 표 준 | C51: 수도권 | D51: 11 | E51: 11 | F51: 11 | G51: 11 | H51: 11 | I51: 11 | J51: 12 | K51: 12 | L51: 12 | M51: 12 | N51: 12 | O51: 12
C52: 비수도권 | D52: 21 | E52: 21 | F52: 21 | G52: 21 | H52: 21 | I52: 21 | J52: 26 | K52: 26 | L52: 26 | M52: 26 | N52: 26 | O52: 26
B53: 중소형 | C53: 수도권 | D53: 17 | E53: 17 | F53: 17 | G53: 17 | H53: 17 | I53: 17 | J53: 26 | K53: 26 | L53: 26 | M53: 26 | N53: 26 | O53: 26
C54: 비수도권 | D54: 18 | E54: 18 | F54: 18 | G54: 18 | H54: 18 | I54: 18 | J54: 32 | K54: 32 | L54: 32 | M54: 32 | N54: 32 | O54: 32
B55: 제 주 | D55: 5 | E55: 5 | F55: 5 | G55: 5 | H55: 5 | I55: 5 | J55: 5 | K55: 5 | L55: 4 | M55: 4 | N55: 4 | O55: 4
B56: 합 계 | D56: 72 | E56: 72 | F56: 72 | G56: 72 | H56: 72 | I56: 72 | J56: 101 | K56: 101 | L56: 100 | M56: 100 | N56: 100 | O56: 100
B58: 연 | D58: 2023 | E58: 2024 | F58: 2024 | G58: 2024 | H58: 2024 | I58: 2024 | J58: 2024 | K58: 2024 | L58: 2024 | M58: 2024 | N58: 2024 | O58: 2024
B59: 월 | D59: 12 | E59: 1 | F59: 2 | G59: 3 | H59: 4 | I59: 5 | J59: 6 | K59: 7 | L59: 8 | M59: 9 | N59: 10 | O59: 11
B60: 표 준 | C60: 수도권 | D60: 11 | E60: 11 | F60: 11 | G60: 11 | H60: 11 | I60: 11 | J60: 11 | K60: 11 | L60: 11 | M60: 11 | N60: 11 | O60: 11
C61: 비수도권 | D61: 18 | E61: 18 | F61: 18 | G61: 18 | H61: 18 | I61: 18 | J61: 20 | K61: 20 | L61: 20 | M61: 20 | N61: 20 | O61: 20
B62: 중소형 | C62: 수도권 | D62: 21 | E62: 21 | F62: 20 | G62: 20 | H62: 20 | I62: 20 | J62: 24 | K62: 24 | L62: 24 | M62: 24 | N62: 24 | O62: 24
C63: 비수도권 | D63: 26 | E63: 26 | F63: 26 | G63: 26 | H63: 26 | I63: 26 | J63: 30 | K63: 30 | L63: 27 | M63: 27 | N63: 27 | O63: 27
B64: 제 주 | D64: 4 | E64: 4 | F64: 4 | G64: 4 | H64: 4 | I64: 4 | J64: 4 | K64: 4 | L64: 4 | M64: 4 | N64: 4 | O64: 4
B65: 합 계 | D65: 80 | E65: 80 | F65: =SUM(F60:F64) -> 79 | G65: =SUM(G60:G64) -> 79 | H65: =SUM(H60:H64) -> 79 | I65: =SUM(I60:I64) -> 79 | J65: 89 | K65: 89 | L65: 86 | M65: 86 | N65: 86 | O65: 86
B67: 연 | D67: 2024 | E67: 2025 | F67: 2025 | G67: 2025 | H67: 2025 | I67: 2025 | J67: 2025 | K67: 2025 | L67: 2025 | M67: 2025 | N67: 2025 | O67: 2025
B68: 월 | D68: 12 | E68: 1 | F68: 2 | G68: 3 | H68: 4 | I68: 5 | J68: 6 | K68: 7 | L68: 8 | M68: 9 | N68: 10 | O68: 11
B69: 표 준 | C69: 수도권 | D69: 12 | E69: 12 | F69: 12 | G69: 12 | H69: 12 | I69: 12 | J69: 12 | K69: 12 | L69: 11 | M69: 11 | N69: 11
C70: 비수도권 | D70: 17 | E70: 17 | F70: 17 | G70: 17 | H70: 17 | I70: 17 | J70: 22 | K70: 22 | L70: 22 | M70: 22 | N70: 22
B71: 중소형 | C71: 수도권 | D71: 18 | E71: 18 | F71: 18 | G71: 18 | H71: 18 | I71: 18 | J71: 24 | K71: 24 | L71: 24 | M71: 24 | N71: 24
C72: 비수도권 | D72: 27 | E72: 27 | F72: 27 | G72: 27 | H72: 27 | I72: 27 | J72: 28 | K72: 28 | L72: 27 | M72: 27 | N72: 27
B73: 제 주 | D73: 4 | E73: 4 | F73: 4 | G73: 4 | H73: 4 | I73: 4 | J73: 4 | K73: 4 | L73: 4 | M73: 4 | N73: 4
B74: 합 계 | D74: 78 | E74: 78 | F74: 78 | G74: 78 | H74: 78 | I74: 78 | J74: 90 | K74: 90 | L74: 88 | M74: 88 | N74: 88
B76: ㅇ 월별 참여고객 수(개)
B77: 연 | D77: 2021 | E77: 2022 | F77: 2022 | G77: 2022 | H77: 2022 | I77: 2022 | J77: 2022 | K77: 2022 | L77: 2022 | M77: 2022 | N77: 2022 | O77: 2022
B78: 월 | D78: 12 | E78: 1 | F78: 2 | G78: 3 | H78: 4 | I78: 5 | J78: 6 | K78: 7 | L78: 8 | M78: 9 | N78: 10 | O78: 11
B79: 표 준 | C79: 수도권 | D79: 517 | E79: 517 | F79: 517 | G79: 524 | H79: 524 | I79: 524 | J79: 550 | K79: 550 | L79: 524 | M79: 520 | N79: 520 | O79: 520
C80: 비수도권 | D80: 1272 | E80: 1272 | F80: 1272 | G80: 1291 | H80: 1291 | I80: 1291 | J80: 1329 | K80: 1329 | L80: 1329 | M80: 1322 | N80: 1322 | O80: 1322
B81: 중소형 | C81: 수도권 | D81: 969 | E81: 969 | F81: 969 | G81: 963 | H81: 963 | I81: 963 | J81: 995 | K81: 995 | L81: 995 | M81: 1001 | N81: 1001 | O81: 1001
C82: 비수도권 | D82: 2276 | E82: 2276 | F82: 2276 | G82: 2243 | H82: 2243 | I82: 2243 | J82: 2438 | K82: 2438 | L82: 2422 | M82: 2396 | N82: 2396 | O82: 2396
B83: 제 주 | D83: - | E83: - | F83: - | G83: - | H83: - | I83: - | J83: - | K83: - | L83: - | M83: - | N83: - | O83: -
B84: 합 계 | D84: 5034 | E84: 5034 | F84: 5034 | G84: 5021 | H84: 5021 | I84: 5021 | J84: 5312 | K84: 5312 | L84: 5270 | M84: 5239 | N84: 5239 | O84: 5239
B86: 연 | D86: 2022 | E86: 2023 | F86: 2023 | G86: 2023 | H86: 2023 | I86: 2023 | J86: 2023 | K86: 2023 | L86: 2023 | M86: 2023 | N86: 2023 | O86: 2023
B87: 월 | D87: 12 | E87: 1 | F87: 2 | G87: 3 | H87: 4 | I87: 5 | J87: 6 | K87: 7 | L87: 8 | M87: 9 | N87: 10 | O87: 11
B88: 표 준 | C88: 수도권 | D88: 504 | E88: 504 | F88: 504 | G88: 503 | H88: 503 | I88: 503 | J88: 544 | K88: 544 | L88: 544 | M88: 544 | N88: 544 | O88: 544
C89: 비수도권 | D89: 1306 | E89: 1306 | F89: 1306 | G89: 1405 | H89: 1405 | I89: 1405 | J89: 1476 | K89: 1476 | L89: 1476 | M89: 1476 | N89: 1476 | O89: 1476
B90: 중소형 | C90: 수도권 | D90: 620 | E90: 620 | F90: 620 | G90: 618 | H90: 618 | I90: 618 | J90: 1020 | K90: 1020 | L90: 1020 | M90: 1020 | N90: 1020 | O90: 1020
C91: 비수도권 | D91: 1204 | E91: 1204 | F91: 1204 | G91: 1157 | H91: 1157 | I91: 1157 | J91: 1886 | K91: 1886 | L91: 1885 | M91: 1885 | N91: 1885 | O91: 1885
B92: 제 주 | D92: 128 | E92: 128 | F92: 128 | G92: 130 | H92: 130 | I92: 130 | J92: 133 | K92: 133 | L92: 121 | M92: 121 | N92: 121 | O92: 121
B93: 합 계 | D93: 3762 | E93: 3762 | F93: 3762 | G93: 3813 | H93: 3813 | I93: 3813 | J93: 5059 | K93: 5059 | L93: 5046 | M93: 5046 | N93: 5046 | O93: 5046
B95: 연 | D95: 2023 | E95: 2024 | F95: 2024 | G95: 2024 | H95: 2024 | I95: 2024 | J95: 2024 | K95: 2024 | L95: 2024 | M95: 2024 | N95: 2024 | O95: 2024
B96: 월 | D96: 12 | E96: 1 | F96: 2 | G96: 3 | H96: 4 | I96: 5 | J96: 6 | K96: 7 | L96: 8 | M96: 9 | N96: 10 | O96: 11
B97: 표 준 | C97: 수도권 | D97: 514 | E97: 514 | F97: 514 | G97: 513 | H97: 513 | I97: 513 | J97: 543 | K97: 542 | L97: 540 | M97: 544 | N97: 544 | O97: 544
C98: 비수도권 | D98: 1313 | E98: 1313 | F98: 1313 | G98: 1325 | H98: 1325 | I98: 1325 | J98: 1345 | K98: 1344 | L98: 1337 | M98: 1354 | N98: 1354 | O98: 1354
B99: 중소형 | C99: 수도권 | D99: 878 | E99: 878 | F99: 866 | G99: 856 | H99: 856 | I99: 856 | J99: 1004 | K99: 1004 | L99: 1003 | M99: 981 | N99: 981 | O99: 981
C100: 비수도권 | D100: 1762 | E100: 1762 | F100: 1762 | G100: 1718 | H100: 1718 | I100: 1718 | J100: 1860 | K100: 1857 | L100: 1782 | M100: 1761 | N100: 1761 | O100: 1761
B101: 제 주 | D101: 104 | E101: 104 | F101: 104 | G101: 101 | H101: 101 | I101: 101 | J101: 100 | K101: 99 | L101: 99 | M101: 99 | N101: 99 | O101: 99
B102: 합 계 | D102: 4571 | E102: 4571 | F102: =SUM(F97:F101) -> 4559 | G102: 4513 | H102: 4513 | I102: 4513 | J102: 4852 | K102: 4846 | L102: 4761 | M102: 4739 | N102: 4739 | O102: 4739
B104: 연 | D104: 2024 | E104: 2025 | F104: 2025 | G104: 2025 | H104: 2025 | I104: 2025 | J104: 2025 | K104: 2025 | L104: 2025 | M104: 2025 | N104: 2025 | O104: 2025
B105: 월 | D105: 12 | E105: 1 | F105: 2 | G105: 3 | H105: 4 | I105: 5 | J105: 6 | K105: 7 | L105: 8 | M105: 9 | N105: 10 | O105: 11
B106: 표 준 | C106: 수도권 | D106: 515 | E106: 515 | F106: 515 | G106: 525 | H106: 525 | I106: 525 | J106: 526 | K106: 526 | L106: 509 | M106: 515 | N106: 515
C107: 비수도권 | D107: 1182 | E107: 1182 | F107: 1182 | G107: 1187 | H107: 1187 | I107: 1187 | J107: 1191 | K107: 1191 | L107: 1191 | M107: 1179 | N107: 1179
B108: 중소형 | C108: 수도권 | D108: 757 | E108: 757 | F108: 757 | G108: 753 | H108: 753 | I108: 753 | J108: 874 | K108: 874 | L108: 874 | M108: 856 | N108: 856
C109: 비수도권 | D109: 1649 | E109: 1649 | F109: 1649 | G109: 1637 | H109: 1637 | I109: 1637 | J109: 1616 | K109: 1616 | L109: 1605 | M109: 1486 | N109: 1486
B110: 제 주 | D110: 114 | E110: 114 | F110: 114 | G110: 114 | H110: 114 | I110: 114 | J110: 115 | K110: 115 | L110: 115 | M110: 115 | N110: 115
B111: 합 계 | D111: 4217 | E111: 4217 | F111: 4217 | G111: 4216 | H111: 4216 | I111: 4216 | J111: 4322 | K111: 4322 | L111: 4294 | M111: 4151 | N111: 4151

Sheet 월별 참여 현황(H-표준중소형제주)
B2: ㅇ 월별 의무감축용량(MW)
B3: 연 | D3: 2024 | E3: 2025 | F3: 2025 | G3: 2025 | H3: 2025 | I3: 2025 | J3: 2025 | K3: 2025 | L3: 2025 | M3: 2025 | N3: 2025 | O3: 2025
B4: 월 | D4: 12 | E4: 1 | F4: 2 | G4: 3 | H4: 4 | I4: 5 | J4: 6 | K4: 7 | L4: 8 | M4: 9 | N4: 10 | O4: 11
B5: H-표준 | C5: 수도권 | G5: 141.5 | H5: 141.5 | I5: 141.5 | J5: 0 | K5: 0 | L5: 0 | M5: 141.5 | N5: 141.5
C6: 비수도권 | G6: 609.93 | H6: 609.93 | I6: 609.93 | J6: 0 | K6: 0 | L6: 0 | M6: 725.959 | N6: 725.959
B7: H-중소형 | C7: 수도권 | G7: 0 | H7: 0 | I7: 0 | J7: 0 | K7: 0 | L7: 0 | M7: 0 | N7: 0
C8: 비수도권 | G8: 2.502 | H8: 2.502 | I8: 2.502 | J8: 0 | K8: 0 | L8: 0 | M8: 2.502 | N8: 2.502
B9: H-제주 | G9: 0 | H9: 0 | I9: 0 | J9: 0 | K9: 0 | L9: 0 | M9: 0 | N9: 0
B10: 합 계 | G10: 753.932 | H10: 753.932 | I10: 753.932 | J10: 0 | K10: 0 | L10: 0 | M10: 869.961 | N10: 869.961
B12: ㅇ 월별 수요자원 수(개)
B13: 연 | D13: 2024 | E13: 2025 | F13: 2025 | G13: 2025 | H13: 2025 | I13: 2025 | J13: 2025 | K13: 2025 | L13: 2025 | M13: 2025 | N13: 2025 | O13: 2025
B14: 월 | D14: 12 | E14: 1 | F14: 2 | G14: 3 | H14: 4 | I14: 5 | J14: 6 | K14: 7 | L14: 8 | M14: 9 | N14: 10 | O14: 11
B15: H-표준 | C15: 수도권 | G15: 1 | H15: 1 | I15: 1 | J15: 0 | K15: 0 | L15: 0 | M15: 1 | N15: 1
C16: 비수도권 | G16: 4 | H16: 4 | I16: 4 | J16: 0 | K16: 0 | L16: 0 | M16: 7 | N16: 7
B17: H-중소형 | C17: 수도권 | G17: 0 | H17: 0 | I17: 0 | J17: 0 | K17: 0 | L17: 0 | M17: 0 | N17: 0
C18: 비수도권 | G18: 1 | H18: 1 | I18: 1 | J18: 0 | K18: 0 | L18: 0 | M18: 1 | N18: 1
B19: H-제주 | G19: 0 | H19: 0 | I19: 0 | J19: 0 | K19: 0 | L19: 0 | M19: 0 | N19: 0
B20: 합 계 | G20: 6 | H20: 6 | I20: 6 | J20: 0 | K20: 0 | L20: 0 | M20: 9 | N20: 9
B22: ㅇ 월별 참여고객 수(개)
B23: 연 | D23: 2024 | E23: 2025 | F23: 2025 | G23: 2025 | H23: 2025 | I23: 2025 | J23: 2025 | K23: 2025 | L23: 2025 | M23: 2025 | N23: 2025 | O23: 2025
B24: 월 | D24: 12 | E24: 1 | F24: 2 | G24: 3 | H24: 4 | I24: 5 | J24: 6 | K24: 7 | L24: 8 | M24: 9 | N24: 10 | O24: 11
B25: H-표준 | C25: 수도권 | G25: 13 | H25: 13 | I25: 13 | J25: 0 | K25: 0 | L25: 0 | M25: 13 | N25: 13
C26: 비수도권 | G26: 57 | H26: 57 | I26: 57 | J26: 0 | K26: 0 | L26: 0 | M26: 97 | N26: 97
B27: H-중소형 | C27: 수도권 | G27: 0 | H27: 0 | I27: 0 | J27: 0 | K27: 0 | L27: 0 | M27: 0 | N27: 0
C28: 비수도권 | G28: 11 | H28: 11 | I28: 11 | J28: 0 | K28: 0 | L28: 0 | M28: 11 | N28: 11
B29: H-제주 | G29: 0 | H29: 0 | I29: 0 | J29: 0 | K29: 0 | L29: 0 | M29: 0 | N29: 0
B30: 합 계 | G30: 81 | H30: 81 | I30: 81 | J30: 0 | K30: 0 | L30: 0 | M30: 121 | N30: 121

Sheet 월별 참여 현황(국민주파수플러스)
B2: ㅇ 국민DR 참여 현황
B3: 연 | C3: 2021 | D3: 2022 | E3: 2022 | F3: 2022 | G3: 2022 | H3: 2022 | I3: 2022 | J3: 2022 | K3: 2022 | L3: 2022 | M3: 2022 | N3: 2022
B4: 월 | C4: 12 | D4: 1 | E4: 2 | F4: 3 | G4: 4 | H4: 5 | I4: 6 | J4: 7 | K4: 8 | L4: 9 | M4: 10 | N4: 11
B5: 수요자원 수(개) | C5: 18 | D5: 18 | E5: 19 | F5: 20 | G5: 21 | H5: 21 | I5: 21 | J5: 23 | K5: 23 | L5: 27 | M5: 28 | N5: 29
B6: 참여고객 수(개) | C6: 3979 | D6: 3979 | E6: 4505 | F6: 4727 | G6: 4898 | H6: 6785 | I6: 6823 | J6: 6959 | K6: 7355 | L6: 8698 | M6: 9502 | N6: 11456
B8: 연 | C8: 2022 | D8: 2023 | E8: 2023 | F8: 2023 | G8: 2023 | H8: 2023 | I8: 2023 | J8: 2023 | K8: 2023 | L8: 2023 | M8: 2023 | N8: 2023
B9: 월 | C9: 12 | D9: 1 | E9: 2 | F9: 3 | G9: 4 | H9: 5 | I9: 6 | J9: 7 | K9: 8 | L9: 9 | M9: 10 | N9: 11
B10: 수요자원 수(개) | C10: 30 | D10: 35 | E10: 35 | F10: 37 | G10: 38 | H10: 38 | I10: 38 | J10: 38 | K10: 49 | L10: 52 | M10: 54 | N10: 54
B11: 참여고객 수(개) | C11: 12711 | D11: 13982 | E11: 14457 | F11: 14834 | G11: 15033 | H11: 15199 | I11: 15524 | J11: 17317 | K11: 18136 | L11: 19602 | M11: 20976 | N11: 20976
B13: 연 | C13: 2023 | D13: 2024 | E13: 2024 | F13: 2024 | G13: 2024 | H13: 2024 | I13: 2024 | J13: 2024 | K13: 2024 | L13: 2024 | M13: 2024 | N13: 2024
B14: 월 | C14: 12 | D14: 1 | E14: 2 | F14: 3 | G14: 4 | H14: 5 | I14: 6 | J14: 7 | K14: 8 | L14: 9 | M14: 10 | N14: 11
B15: 수요자원 수(개) | C15: 54 | D15: 60 | E15: 61 | F15: 63 | G15: 73 | H15: 73 | I15: 78 | J15: 84 | K15: 82 | L15: 83 | M15: 98 | N15: 108
B16: 참여고객 수(개) | C16: 22731 | D16: 24300 | E16: 25053 | F16: 26489 | G16: 36355 | H16: 39485 | I16: 43977 | J16: 49755 | K16: 55071 | L16: 55708 | M16: 57736 | N16: 63713
B18: 연 | C18: 2024 | D18: 2025 | E18: 2025 | F18: 2025 | G18: 2025 | H18: 2025 | I18: 2025 | J18: 2025 | K18: 2025 | L18: 2025 | M18: 2025 | N18: 2025
B19: 월 | C19: 12 | D19: 1 | E19: 2 | F19: 3 | G19: 4 | H19: 5 | I19: 6 | J19: 7 | K19: 8 | L19: 9 | M19: 10 | N19: 11
B20: 수요자원 수(개) | C20: 116 | D20: 137 | E20: 133 | F20: 133 | G20: 134 | H20: 135 | I20: 160 | J20: 164 | K20: 164 | L20: 173 | M20: 170
B21: 참여고객 수(개) | C21: 65224 | D21: 74598 | E21: 75476 | F21: 75782 | G21: 77778 | H21: 78317 | I21: 79418 | J21: 81454 | K21: 81315 | L21: 83485 | M21: 82786
B23: ㅇ 주파수DR 참여 현황
B24: 연 | C24: 2021 | D24: 2022 | E24: 2022 | F24: 2022 | G24: 2022 | H24: 2022 | I24: 2022 | J24: 2022 | K24: 2022 | L24: 2022 | M24: 2022 | N24: 2022
B25: 월 | C25: 12 | D25: 1 | E25: 2 | F25: 3 | G25: 4 | H25: 5 | I25: 6 | J25: 7 | K25: 8 | L25: 9 | M25: 10 | N25: 11
B26: 감축예상용량(MW) | C26: 709.735 | D26: 709.735 | E26: 709.735 | F26: 709.735 | G26: 709.735 | H26: 709.735 | I26: 709.735 | J26: 709.735 | K26: 709.735 | L26: 709.735 | M26: 709.735 | N26: 709.735
B27: 수요자원 수(개) | C27: 34 | D27: 34 | E27: 34 | F27: 34 | G27: 34 | H27: 34 | I27: 34 | J27: 34 | K27: 34 | L27: 34 | M27: 34 | N27: 34
B28: 참여고객 수(개) | C28: 34 | D28: 34 | E28: 34 | F28: 34 | G28: 34 | H28: 34 | I28: 34 | J28: 34 | K28: 34 | L28: 34 | M28: 34 | N28: 34
B30: 연 | C30: 2022 | D30: 2023 | E30: 2023 | F30: 2023 | G30: 2023 | H30: 2023 | I30: 2023 | J30: 2023 | K30: 2023 | L30: 2023 | M30: 2023 | N30: 2023
B31: 월 | C31: 12 | D31: 1 | E31: 2 | F31: 3 | G31: 4 | H31: 5 | I31: 6 | J31: 7 | K31: 8 | L31: 9 | M31: 10 | N31: 11
B32: 1단계 감축예상용량(MW) | C32: 689.564 | D32: 689.564 | E32: 689.564 | F32: 714.386 | G32: 714.386 | H32: 714.386 | I32: 742.181 | J32: 742.181 | K32: 742.181 | L32: 742.181 | M32: 742.181 | N32: 742.181
B33: 1단계 수요자원 수(개) | C33: 43 | D33: 43 | E33: 43 | F33: 50 | G33: 50 | H33: 50 | I33: 51 | J33: 51 | K33: 51 | L33: 51 | M33: 51 | N33: 51
B34: 1단계 참여고객 수(개) | C34: 44 | D34: 44 | E34: 44 | F34: 52 | G34: 52 | H34: 52 | I34: 56 | J34: 56 | K34: 56 | L34: 56 | M34: 56 | N34: 56
B35: 2단계 감축예상용량(MW) | F35: 33.753 | G35: 33.753 | H35: 33.753 | I35: 108.122 | J35: 108.122 | K35: 108.122 | L35: 108.122 | M35: 108.122 | N35: 108.122
B36: 2단계 수요자원 수(개) | F36: 1 | G36: 1 | H36: 1 | I36: 2 | J36: 2 | K36: 2 | L36: 2 | M36: 2 | N36: 2
B37: 2단계 참여고객 수(개) | F37: 2 | G37: 2 | H37: 2 | I37: 4 | J37: 4 | K37: 4 | L37: 4 | M37: 4 | N37: 4
B39: 연 | C39: 2023 | D39: 2024 | E39: 2024 | F39: 2024 | G39: 2024 | H39: 2024 | I39: 2024 | J39: 2024 | K39: 2024 | L39: 2024 | M39: 2024 | N39: 2024
B40: 월 | C40: 12 | D40: 1 | E40: 2 | F40: 3 | G40: 4 | H40: 5 | I40: 6 | J40: 7 | K40: 8 | L40: 9 | M40: 10 | N40: 11
B41: 1단계 감축예상용량(MW) | C41: 728.433 | D41: 728.433 | E41: 728.433 | F41: 728.433 | G41: 728.433 | H41: 728.433 | I41: 728.433 | J41: 728.433 | K41: 728.433 | L41: 728.433 | M41: 728.433 | N41: 728.433
B42: 1단계 수요자원 수(개) | C42: 50 | D42: 50 | E42: 50 | F42: 50 | G42: 50 | H42: 50 | I42: 50 | J42: 50 | K42: 50 | L42: 50 | M42: 50 | N42: 50
B43: 1단계 참여고객 수(개) | C43: 56 | D43: 56 | E43: 56 | F43: 56 | G43: 56 | H43: 56 | I43: 56 | J43: 56 | K43: 56 | L43: 56 | M43: 56 | N43: 56
B44: 2단계 감축예상용량(MW) | C44: 310.991 | D44: 310.991 | E44: 310.991 | F44: 310.991 | G44: 310.991 | H44: 310.991 | I44: 310.991 | J44: 310.991 | K44: 310.991 | L44: 310.991 | M44: 310.991 | N44: 310.991
B45: 2단계 수요자원 수(개) | C45: 22 | D45: 22 | E45: 22 | F45: 22 | G45: 22 | H45: 22 | I45: 22 | J45: 22 | K45: 22 | L45: 22 | M45: 22 | N45: 22
B46: 2단계 참여고객 수(개) | C46: 27 | D46: 27 | E46: 27 | F46: 27 | G46: 27 | H46: 27 | I46: 27 | J46: 27 | K46: 27 | L46: 27 | M46: 27 | N46: 27
B48: 연 | C48: 2024 | D48: 2025 | E48: 2025 | F48: 2025 | G48: 2025 | H48: 2025 | I48: 2025 | J48: 2025 | K48: 2025 | L48: 2025 | M48: 2025 | N48: 2025
B49: 월 | C49: 12 | D49: 1 | E49: 2 | F49: 3 | G49: 4 | H49: 5 | I49: 6 | J49: 7 | K49: 8 | L49: 9 | M49: 10 | N49: 11
B50: 1단계 감축예상용량(MW) | C50: 629.523 | D50: 629.523 | E50: 629.523 | F50: 631.243 | G50: 631.243 | H50: 631.243 | I50: 631.243 | J50: 631.243 | K50: 631.243 | L50: 631.243 | M50: 631.243
B51: 1단계 수요자원 수(개) | C51: 48 | D51: 48 | E51: 48 | F51: 49 | G51: 49 | H51: 49 | I51: 49 | J51: 49 | K51: 49 | L51: 49 | M51: 49
B52: 1단계 참여고객 수(개) | C52: 56 | D52: 56 | E52: 56 | F52: 59 | G52: 59 | H52: 59 | I52: 59 | J52: 59 | K52: 59 | L52: 59 | M52: 59
B53: 2단계 감축예상용량(MW) | C53: 254.034 | D53: 254.034 | E53: 254.034 | F53: 254.034 | G53: 254.034 | H53: 254.034 | I53: 254.034 | J53: 254.034 | K53: 254.034 | L53: 254.034 | M53: 254.034
B54: 2단계 수요자원 수(개) | C54: 22 | D54: 22 | E54: 22 | F54: 22 | G54: 22 | H54: 22 | I54: 22 | J54: 22 | K54: 22 | L54: 22 | M54: 22
B55: 2단계 참여고객 수(개) | C55: 29 | D55: 29 | E55: 29 | F55: 29 | G55: 29 | H55: 29 | I55: 29 | J55: 29 | K55: 29 | L55: 29 | M55: 29
B57: ㅇ 육지 플러스DR 참여 현황
B58: 연 | C58: 2023 | D58: 2024 | E58: 2024 | F58: 2024 | G58: 2024 | H58: 2024 | I58: 2024 | J58: 2024 | K58: 2024 | L58: 2024 | M58: 2024 | N58: 2024
B59: 월 | C59: 12 | D59: 1 | E59: 2 | F59: 3 | G59: 4 | H59: 5 | I59: 6 | J59: 7 | K59: 8 | L59: 9 | M59: 10 | N59: 11
B60: 증대가능용량(MW) | G60: 1295.174774 | H60: 1295.174774 | I60: 1337.523774 | J60: 1337.523774 | K60: 1337.523774 | L60: 1639.561774 | M60: 1639.561774 | N60: 1639.561774
B61: 수요자원 수(개) | G61: 137 | H61: 137 | I61: 157 | J61: 157 | K61: 157 | L61: 173 | M61: 173 | N61: 173
B62: 참여고객 수(개) | G62: 26209 | H62: 26209 | I62: 26968 | J62: 26968 | K62: 26968 | L62: 32892 | M62: 32892 | N62: 32892
B64: 연 | C64: 2024 | D64: 2025 | E64: 2025 | F64: 2025 | G64: 2025 | H64: 2025 | I64: 2025 | J64: 2025 | K64: 2025 | L64: 2025 | M64: 2025 | N64: 2025
B65: 월 | C65: 12 | D65: 1 | E65: 2 | F65: 3 | G65: 4 | H65: 5 | I65: 6 | J65: 7 | K65: 8 | L65: 9 | M65: 10 | N65: 11
B66: 증대가능용량(MW) | C66: 2793.914 | D66: 2793.914 | E66: 2793.914 | F66: 2827.914 | G66: 2827.914 | H66: 2827.914 | I66: 2828.824 | J66: 2828.824 | K66: 2828.824 | L66: 2879.724 | M66: 2879.724
B67: 수요자원 수(개) | C67: 162 | D67: 162 | E67: 162 | F67: 165 | G67: 165 | H67: 165 | I67: 167 | J67: 167 | K67: 167 | L67: 179 | M67: 179
B68: 참여고객 수(개) | C68: 43488 | D68: 43488 | E68: 43488 | F68: 43509 | G68: 43509 | H68: 43509 | I68: 44285 | J68: 44285 | K68: 44285 | L68: 44141 | M68: 44141
B70: ㅇ 제주 플러스DR 참여 현황
B71: 연 | C71: 2021 | D71: 2022 | E71: 2022 | F71: 2022 | G71: 2022 | H71: 2022 | I71: 2022 | J71: 2022 | K71: 2022 | L71: 2022 | M71: 2022 | N71: 2022
B72: 월 | C72: 12 | D72: 1 | E72: 2 | F72: 3 | G72: 4 | H72: 5 | I72: 6 | J72: 7 | K72: 8 | L72: 9 | M72: 10 | N72: 11
B73: 수요자원 수(개) | C73: 514 | D73: 514 | E73: 514 | F73: 555 | G73: 555 | H73: 555 | I73: 602 | J73: 602 | K73: 602 | L73: 814 | M73: 814 | N73: 814
B74: 참여고객 수(개) | C74: 965 | D74: 965 | E74: 965 | F74: 1009 | G74: 1009 | H74: 1009 | I74: 1058 | J74: 1058 | K74: 1058 | L74: 1274 | M74: 1274 | N74: 1274
B76: 연 | C76: 2022 | D76: 2023 | E76: 2023 | F76: 2023 | G76: 2023 | H76: 2023 | I76: 2023 | J76: 2023 | K76: 2023 | L76: 2023 | M76: 2023 | N76: 2023
B77: 월 | C77: 12 | D77: 1 | E77: 2 | F77: 3 | G77: 4 | H77: 5 | I77: 6 | J77: 7 | K77: 8 | L77: 9 | M77: 10 | N77: 11
B78: 수요자원 수(개) | C78: 838 | D78: 838 | E78: 838 | F78: 17 | G78: 17 | H78: 17 | I78: 18 | J78: 18 | K78: 18 | L78: 18 | M78: 18 | N78: 18
B79: 참여고객 수(개) | C79: 1279 | D79: 1279 | E79: 1279 | F79: 1289 | G79: 1289 | H79: 1289 | I79: 1289 | J79: 1289 | K79: 1289 | L79: 1289 | M79: 1289 | N79: 1289
B81: 연 | C81: 2023 | D81: 2024 | E81: 2024 | F81: 2024 | G81: 2024 | H81: 2024 | I81: 2024 | J81: 2024 | K81: 2024 | L81: 2024 | M81: 2024 | N81: 2024
B82: 월 | C82: 12 | D82: 1 | E82: 2 | F82: 3 | G82: 4 | H82: 5 | I82: 6 | J82: 7 | K82: 8 | L82: 9 | M82: 10 | N82: 11
B83: 수요자원 수(개) | C83: 23 | D83: 23 | E83: 26 | F83: 26 | G83: 26 | H83: 26 | I83: 29 | J83: 29 | K83: 29 | L83: 30 | M83: 30 | N83: 30
B84: 참여고객 수(개) | C84: 1558 | D84: 1558 | E84: 1662 | F84: 1680 | G84: 1680 | H84: 1680 | I84: 1807 | J84: 1807 | K84: 1807 | L84: 1736 | M84: 1736 | N84: 1736
B86: 연 | C86: 2024 | D86: 2025 | E86: 2025 | F86: 2025 | G86: 2025 | H86: 2025 | I86: 2025 | J86: 2025 | K86: 2025 | L86: 2025 | M86: 2025 | N86: 2025
B87: 월 | C87: 12 | D87: 1 | E87: 2 | F87: 3 | G87: 4 | H87: 5 | I87: 6 | J87: 7 | K87: 8 | L87: 9 | M87: 10 | N87: 11
B88: 수요자원 수(개) | C88: 28 | D88: 28 | E88: 28 | F88: 28 | G88: 28 | H88: 28 | I88: 28 | J88: 28 | K88: 28 | L88: 28 | M88: 28
B89: 참여고객 수(개) | C89: 1760 | D89: 1760 | E89: 1760 | F89: 1659 | G89: 1659 | H89: 1659 | I89: 1665 | J89: 1665 | K89: 1665 | L89: 1668 | M89: 1668

Sheet 월별 가격지표 현황
B2: ㅇ 월별 순편익가격(NBTP) 및 계통한계가격(SMP)(원/kWh)
B3: 연 | C3: 2021 | D3: 2021 | E3: 2021 | F3: 2021 | G3: 2021 | H3: 2021 | I3: 2021 | J3: 2021 | K3: 2021 | L3: 2021 | M3: 2021 | N3: 2021
B4: 월 | C4: 1 | D4: 2 | E4: 3 | F4: 4 | G4: 5 | H4: 6 | I4: 7 | J4: 8 | K4: 9 | L4: 10 | M4: 11 | N4: 12
B5: 육지NBTP | C5: 71.04 | D5: 77.11 | E5: 85.29 | F5: 74.51 | G5: 80.56 | H5: 84.34 | I5: 89.06 | J5: 97.11 | K5: 103.77 | L5: 108.35 | M5: 134.15 | N5: 148.01
B6: 제주NBTP | C6: - | D6: - | E6: - | F6: - | G6: - | H6: - | I6: - | J6: - | K6: - | L6: - | M6: - | N6: -
B7: 육지SMP | C7: 70.47 | D7: 75.25 | E7: 83.78 | F7: 75.97 | G7: 78.93 | H7: 82.72 | I7: 87.04 | J7: 93.41 | K7: 98.21 | L7: 107.53 | M7: 126.83 | N7: 142.46
B8: 제주SMP | C8: 87.75 | D8: 92.84 | E8: 124.79 | F8: 111 | G8: 95.39 | H8: 121.49 | I8: 133.68 | J8: 153.23 | K8: 149.31 | L8: 130.14 | M8: 149.77 | N8: 175.72
B10: 연 | C10: 2022 | D10: 2022 | E10: 2022 | F10: 2022 | G10: 2022 | H10: 2022 | I10: 2022 | J10: 2022 | K10: 2022 | L10: 2022 | M10: 2022 | N10: 2022
B11: 월 | C11: 1 | D11: 2 | E11: 3 | F11: 4 | G11: 5 | H11: 6 | I11: 7 | J11: 8 | K11: 9 | L11: 10 | M11: 11 | N11: 12
B12: 육지NBTP | C12: 166.08 | D12: 216.78 | E12: 197.17 | F12: 210.88 | G12: 141.91 | H12: 134.96 | I12: 161.98 | J12: 217.71 | K12: 252.06 | L12: 270.62 | M12: 263.69 | N12: 279.9
B13: 제주NBTP | C13: - | D13: - | E13: - | F13: - | G13: - | H13: - | I13: - | J13: - | K13: - | L13: - | M13: - | N13: 371.96
B14: 육지SMP | C14: 153.82 | D14: 196.93 | E14: 192.34 | F14: 201.58 | G14: 139.06 | H14: 128.84 | I14: 150.6 | J14: 196.02 | K14: 233.37 | L14: 251.61 | M14: 242.17 | N14: 267.55
B15: 제주SMP | C15: 206.86 | D15: 229.85 | E15: 229.05 | F15: 250.33 | G15: 263.73 | H15: 214.32 | I15: 261.31 | J15: 340.91 | K15: 238.44 | L15: 255.03 | M15: 243.97 | N15: 275.15
B17: 연 | C17: 2023 | D17: 2023 | E17: 2023 | F17: 2023 | G17: 2023 | H17: 2023 | I17: 2023 | J17: 2023 | K17: 2023 | L17: 2023 | M17: 2023 | N17: 2023
B18: 월 | C18: 1 | D18: 2 | E18: 3 | F18: 4 | G18: 5 | H18: 6 | I18: 7 | J18: 8 | K18: 9 | L18: 10 | M18: 11 | N18: 12
B19: 육지NBTP | C19: 262.73 | D19: 266.58 | E19: 246.42 | F19: 178.87 | G19: 164.7 | H19: 159.33 | I19: 166.19 | J19: 156.76 | K19: 154.32 | L19: 163.91 | M19: 138.79 | N19: 155.91
B20: 제주NBTP | C20: 346.7 | D20: 317.22 | E20: 300.47 | F20: 207.89 | G20: 200.49 | H20: 193.91 | I20: 203.36 | J20: 192.23 | K20: 166.47 | L20: 176.29 | M20: 156.15 | N20: 165.35
B21: 육지SMP | C21: 240.73 | D21: 253.48 | E21: 215.87 | F21: 164.87 | G21: 143.64 | H21: 147.12 | I21: 153.39 | J21: 146.91 | K21: 140.93 | L21: 136.73 | M21: 120.82 | N21: 131.05
B22: 제주SMP | C22: 247.55 | D22: 260.27 | E22: 218.2 | F22: 163.87 | G22: 143.07 | H22: 147.71 | I22: 164.72 | J22: 173.17 | K22: 162.46 | L22: 163.17 | M22: 123.37 | N22: 137.04
B24: 연 | C24: 2024 | D24: 2024 | E24: 2024 | F24: 2024 | G24: 2024 | H24: 2024 | I24: 2024 | J24: 2024 | K24: 2024 | L24: 2024 | M24: 2024 | N24: 2024
B25: 월 | C25: 1 | D25: 2 | E25: 3 | F25: 4 | G25: 5 | H25: 6 | I25: 7 | J25: 8 | K25: 9 | L25: 10 | M25: 11 | N25: 12
B26: 육지NBTP | C26: 174 | D26: 156.32 | E26: 158.56 | F26: 146.96 | G26: 142.16 | H26: 138.26 | I26: 141.12 | J26: 145.53 | K26: 147.71 | L26: 143.32 | M26: 140.3 | N26: 146.94
B27: 제주NBTP | C27: 179.38 | D27: 165.15 | E27: 156.22 | F27: 148.8 | G27: 138.07 | H27: 137.13 | I27: 152.41 | J27: 164.08 | K27: 161.53 | L27: 156 | M27: 138.18 | N27: 153.14
B28: 육지SMP | C28: 137.91 | D28: 119.49 | E28: 134.4 | F28: 125.9 | G28: 126.35 | H28: 125.99 | I28: 132.46 | J28: 146.21 | K28: 138.78 | L28: 117.2 | M28: 112.26 | N28: 116.58
B29: 제주SMP | C29: 150.67 | D29: 122.34 | E29: 140.61 | F29: 141.72 | G29: 127.09 | H29: 126.41 | I29: 135.55 | J29: 152.02 | K29: 145.1 | L29: 120.62 | M29: 108.66 | N29: 118.18
B31: 연 | C31: 2025 | D31: 2025 | E31: 2025 | F31: 2025 | G31: 2025 | H31: 2025 | I31: 2025 | J31: 2025 | K31: 2025 | L31: 2025 | M31: 2025 | N31: 2025
B32: 월 | C32: 1 | D32: 2 | E32: 3 | F32: 4 | G32: 5 | H32: 6 | I32: 7 | J32: 8 | K32: 9 | L32: 10 | M32: 11 | N32: 12
B33: 육지NBTP | C33: 141.58 | D33: 136.79 | E33: 134.74 | F33: 137.72 | G33: 133.65 | H33: 128.51 | I33: 120.83 | J33: 118.03
B34: 제주NBTP | C34: 152.33 | D34: 144.76 | E34: 141.71 | F34: 145.52 | G34: 138.46 | H34: 133.21 | I34: 126.55 | J34: 126.72
B35: 육지SMP | C35: 117.11 | D35: 116.39 | E35: 113.12 | F35: 124.63 | G35: 125.5 | H35: 118.02 | I35: 120.39 | J35: 117.39
B36: 제주SMP | C36: 118.9 | D36: 116.05 | E36: 105.57 | F36: 120.24 | G36: 122.32 | H36: 120.62 | I36: 121.13 | J36: 118.46
B38: ㅇ 월별 고정기본정산금 단가
B39: 연 | C39: 2021 | D39: 2021 | E39: 2021 | F39: 2021 | G39: 2021 | H39: 2021 | I39: 2021 | J39: 2021 | K39: 2021 | L39: 2021 | M39: 2021 | N39: 2021
B40: 월 | C40: 1 | D40: 2 | E40: 3 | F40: 4 | G40: 5 | H40: 6 | I40: 7 | J40: 8 | K40: 9 | L40: 10 | M40: 11 | N40: 12
B41: 표준DR(원/kW-월) | C41: 4750.8 | D41: 2863.62 | E41: 853.6 | F41: 502.92 | G41: 421.8 | H41: 997.04 | I41: 3862.98 | J41: 4810.26 | K41: 1502.14 | L41: 463.79 | M41: 1671.34 | N41: 5132.68
B42: 중소형DR(원/kW-월) | C42: 5807.6 | D42: 3500.82 | E42: 1043.24 | F42: 613.8 | G42: 514.9 | H42: 1218.58 | I42: 4725.16 | J42: 5883.15 | K42: 1837.68 | L42: 566.39 | M42: 2044.9 | N42: 6277.85
B44: 연 | C44: 2022 | D44: 2022 | E44: 2022 | F44: 2022 | G44: 2022 | H44: 2022 | I44: 2022 | J44: 2022 | K44: 2022 | L44: 2022 | M44: 2022 | N44: 2022
B45: 월 | C45: 1 | D45: 2 | E45: 3 | F45: 4 | G45: 5 | H45: 6 | I45: 7 | J45: 8 | K45: 9 | L45: 10 | M45: 11 | N45: 12
B46: 표준/중소형DR(원/kW-월) | C46: 4599 | D46: 2723.4 | E46: 748.02 | F46: 473.76 | G46: 459.9 | H46: 941.6 | I46: 4355.4 | J46: 5541.58 | K46: 1900.2 | L46: 487.92 | M46: 1246.08 | N46: 4343.9
B47: 제주DR(원/kW-월) | C47: - | D47: - | E47: - | F47: - | G47: - | H47: - | I47: - | J47: - | K47: - | L47: - | M47: - | N47: 4834.5
B49: 연 | C49: 2023 | D49: 2023 | E49: 2023 | F49: 2023 | G49: 2023 | H49: 2023 | I49: 2023 | J49: 2023 | K49: 2023 | L49: 2023 | M49: 2023 | N49: 2023
B50: 월 | C50: 1 | D50: 2 | E50: 3 | F50: 4 | G50: 5 | H50: 6 | I50: 7 | J50: 8 | K50: 9 | L50: 10 | M50: 11 | N50: 12
B51: 표준/중소형DR(원/kW-월) | C51: 2943 | D51: 2475.8 | E51: 1212.86 | F51: 385.8 | G51: 445.83 | H51: 1657.74 | I51: 3714.9 | J51: 4017.64 | K51: 2171.7 | L51: 645.62 | M51: 1921.48 | N51: 3843.4
B52: 제주DR(원/kW-월) | C52: 3583.4 | D52: 2902.8 | E52: 1299.1 | F52: 479.6 | G52: 549.78 | H52: 1968.33 | I52: 4521.93 | J52: 4955.28 | K52: 2535.93 | L52: 817.2 | M52: 2054.58 | N52: 4542.8
B54: 연 | C54: 2024 | D54: 2024 | E54: 2024 | F54: 2024 | G54: 2024 | H54: 2024 | I54: 2024 | J54: 2024 | K54: 2024 | L54: 2024 | M54: 2024 | N54: 2024
B55: 월 | C55: 1 | D55: 2 | E55: 3 | F55: 4 | G55: 5 | H55: 6 | I55: 7 | J55: 8 | K55: 9 | L55: 10 | M55: 11 | N55: 12
B56: 표준/중소형DR(원/kW-월) | C56: 3062.4 | D56: 2352.96 | E56: 1383.2 | F56: 668.85 | G56: 766.71 | H56: 2013.81 | I56: 3424.7 | J56: 3166.8 | K56: 2086.92 | L56: 1063.4 | M56: 1826.16 | N56: 3246.6
B57: 제주DR(원/kW-월) | C57: 3774.98 | D57: 2842.78 | E57: 1580.8 | F57: 783.51 | G57: 911.19 | H57: 2447.39 | I57: 4285.36 | J57: 3963.54 | K57: 2557.98 | L57: 1260.8 | M57: 2079 | N57: 4025.91
B59: 연 | C59: =C54+1 -> 2025 | D59: =D54+1 -> 2025 | E59: 2025 | F59: 2025 | G59: 2025 | H59: 2025 | I59: 2025 | J59: 2025 | K59: 2025 | L59: 2025 | M59: 2025 | N59: 2025
B60: 월 | C60: 1 | D60: 2 | E60: 3 | F60: 4 | G60: 5 | H60: 6 | I60: 7 | J60: 8 | K60: 9 | L60: 10 | M60: 11 | N60: 12
B61: 표준/중소형DR(원/kW-월) | C61: 2348.64 | D61: 2276.4 | E61: 1674.4 | F61: 942.26 | G61: 861.6 | H61: 1815.45 | I61: 3075.1 | J61: 2654
B62: 제주DR(원/kW-월) | C62: 2928.42 | D62: 2773.2 | E62: 1986.8 | F62: 1146.42 | G62: 1095 | H62: 2291.97 | I62: 3835.02 | J62: 3319.8
B63: H-표준/중소형/제주DR(원/kW-월) | C63: 71220.15 | D63: 70820 | E63: 154 | F63: 616 | G63: 847 | H63: 0 | I63: 0 | J63: 0
B65: ㅇ 월별 정산단가
B66: 연 | C66: 2021 | D66: 2021 | E66: 2021 | F66: 2021 | G66: 2021 | H66: 2021 | I66: 2021 | J66: 2021 | K66: 2021 | L66: 2021 | M66: 2021 | N66: 2021
B67: 월 | C67: 1 | D67: 2 | E67: 3 | F67: 4 | G67: 5 | H67: 6 | I67: 7 | J67: 8 | K67: 9 | L67: 10 | M67: 11 | N67: 12
B68: 국민DR(원/kW) | C68: 56347.39 | D68: 56347.39 | E68: 56347.39 | F68: 56347.39 | G68: 56347.39 | H68: 56347.39 | I68: 57315.32 | J68: 57315.32 | K68: 57315.32 | L68: 57335.15 | M68: 57335.15 | N68: 59644.35
B69: 주파수DR(원/kW-10m) | C69: 33772.5 | D69: 33772.5 | E69: 33772.5 | F69: 33772.5 | G69: 33772.5 | H69: 33772.5 | I69: 33676.11 | J69: 33676.11 | K69: 33676.11 | L69: 33698.07 | M69: 33698.07 | N69: 31108.95
B71: 연 | C71: 2022 | D71: 2022 | E71: 2022 | F71: 2022 | G71: 2022 | H71: 2022 | I71: 2022 | J71: 2022 | K71: 2022 | L71: 2022 | M71: 2022 | N71: 2022
B72: 월 | C72: 1 | D72: 2 | E72: 3 | F72: 4 | G72: 5 | H72: 6 | I72: 7 | J72: 8 | K72: 9 | L72: 10 | M72: 11 | N72: 12
B73: 국민DR(육지)(원/kW) | C73: 58632.58 | D73: 58632.58 | E73: 58632.58 | F73: 58632.58 | G73: 58632.58 | H73: 58632.58 | I73: 63502.27 | J73: 63502.27 | K73: 63502.27 | L73: 63502.27 | M73: 63502.27 | N73: 63115.51
B74: 국민DR(제주)(원/kW) | C74: - | D74: - | E74: - | F74: - | G74: - | H74: - | I74: - | J74: - | K74: - | L74: - | M74: - | N74: 64575.87
B75: 주파수DR(원/kW-10m) | C75: 31108.95 | D75: 31108.95 | E75: 31108.95 | F75: 31108.95 | G75: 31108.95 | H75: 31108.95 | I75: 32485.95 | J75: 32485.95 | K75: 32485.95 | L75: 32485.95 | M75: 32485.95 | N75: 33211.35
B77: 연 | C77: 2023 | D77: 2023 | E77: 2023 | F77: 2023 | G77: 2023 | H77: 2023 | I77: 2023 | J77: 2023 | K77: 2023 | L77: 2023 | M77: 2023 | N77: 2023
B78: 월 | C78: 1 | D78: 2 | E78: 3 | F78: 4 | G78: 5 | H78: 6 | I78: 7 | J78: 8 | K78: 9 | L78: 10 | M78: 11 | N78: 12
B79: 국민DR(육지)(원/kW) | C79: 66055.85 | D79: 66055.85 | E79: 66055.85 | F79: 66055.85 | G79: 65993.27 | H79: 65993.27 | I79: 67659.4 | J79: 67659.4 | K79: 67566.85 | L79: 67566.85 | M79: 67566.85 | N79: 67566.85
B80: 국민DR(제주)(원/kW) | C80: 70847.34 | D80: 70847.34 | E80: 70847.34 | F80: 70847.34 | G80: 70776.41 | H80: 70776.41 | I80: 76312.16 | J80: 76312.16 | K80: 76208.01 | L80: 76208.01 | M80: 76208.01 | N80: 76208.01
B81: 주파수DR(원/kW-10m) | C81: 33211.35 | D81: 33211.35 | E81: 33211.35 | F81: 33211.35 | G81: 33211.35 | H81: 33211.35 | I81: 35924.04 | J81: 35924.04 | K81: 35924.04 | L81: 35924.04 | M81: 35924.04 | N81: 39791.52
B83: 연 | C83: 2024 | D83: 2024 | E83: 2024 | F83: 2024 | G83: 2024 | H83: 2024 | I83: 2024 | J83: 2024 | K83: 2024 | L83: 2024 | M83: 2024 | N83: 2024
B84: 월 | C84: 1 | D84: 2 | E84: 3 | F84: 4 | G84: 5 | H84: 6 | I84: 7 | J84: 8 | K84: 9 | L84: 10 | M84: 11 | N84: 12
B85: 국민DR(육지)(원/kW) | C85: 71306.25 | D85: 71306.25 | E85: 71306.25 | F85: 71306.25 | G85: 71306.25 | H85: 71306.25 | I85: 70588.03 | J85: 70588.03 | K85: 70588.03 | L85: 70499.09 | M85: 70499.09 | N85: 70499.09
B86: 국민DR(제주)(원/kW) | C86: 80247.6 | D86: 80247.6 | E86: 80247.6 | F86: 80247.6 | G86: 80247.6 | H86: 80247.6 | I86: 80020.12 | J86: 80020.12 | K86: 80020.12 | L86: 79861.83 | M86: 79861.83 | N86: 79861.83
B87: 주파수DR(원/kW-10m) | C87: 39791.52 | D87: 39791.52 | E87: 39791.52 | F87: 39791.52 | G87: 39791.52 | H87: 39791.52 | I87: 40576.41 | J87: 40576.41 | K87: 40576.41 | L87: 40576.41 | M87: 40576.41 | N87: 41555.25
B88: 육지 플러스DR(원/kWh) | G88: 50 | H88: 50 | I88: 50 | J88: 50 | K88: 50 | L88: 50 | M88: 50 | N88: 50
B89: 제주 플러스DR(원/kWh) | I89: 92.69 | J89: 92.69 | K89: 92.69 | L89: 92.71 | M89: 92.71 | N89: 92.71
B91: 연 | C91: =C83+1 -> 2025 | D91: =D83+1 -> 2025 | E91: 2025 | F91: 2025 | G91: 2025 | H91: 2025 | I91: 2025 | J91: 2025 | K91: 2025 | L91: 2025 | M91: 2025 | N91: 2025
B92: 월 | C92: 1 | D92: 2 | E92: 3 | F92: 4 | G92: 5 | H92: 6 | I92: 7 | J92: 8 | K92: 9 | L92: 10 | M92: 11 | N92: 12
B93: 국민DR(육지)(원/kW) | C93: 70499.09 | D93: 71220.15 | E93: 70820 | F93: 70820 | G93: 70820 | H93: 67277.27 | I93: 67277.27 | J93: 67277.27
B94: 국민DR(제주)(원/kW) | C94: 79861.83 | D94: 81142.08 | E94: 80686.23 | F94: 80686.23 | G94: 80686.23 | H94: 76562.47 | I94: 76562.47 | J94: 76562.47
B95: 주파수DR(원/kW-10m) | C95: 41555.25 | D95: 41555.25 | E95: 41555.25 | F95: 41555.25 | G95: 41555.25 | H95: 41555.25 | I95: 40742.82 | J95: 40742.82
B96: 육지 플러스DR(원/kWh) | C96: 50 | D96: 50 | E96: 50 | F96: 50 | G96: 50 | H96: 50 | I96: 50 | J96: 50
B97: 제주 플러스DR(원/kWh) | C97: 95.1 | D97: 95.1 | E97: 95.1 | F97: 96.06 | G97: 96.06 | H97: 96.57 | I97: 96.57 | J97: 96.57

Sheet 월별 감축 및 증대 실적
B2: ㅇ 신뢰성DR 감축실적
B3: 차수 | C3: 연 | D3: 월 | E3: 일 | F3: 감축요청량(MWh) | G3: 감축이행량(MWh) | H3: 이행률(%) | I3: 비 고
B4: 7 | C4: 2020 | D4: 12 | E4: 9 | F4: 4499.344 | G4: 5024.906 | H4: =G4/F4*100 -> 111.6808584 | I4: 감축시험
B5: 7 | C5: 2020 | D5: 12 | E5: 22 | F5: 95.762 | G5: 102.341 | H5: =G5/F5*100 -> 106.8701573 | I5: 감축재시험
B6: 7 | C6: 2021 | D6: 6 | E6: 8 | F6: 4695.325 | G6: 5331.635 | H6: 113.5519905 | I6: 감축시험
B7: 7 | C7: 2021 | D7: 6 | E7: 22 | F7: 451.2 | G7: 418.405 | H7: 92.73160461 | I7: 감축재시험
B8: 8 | C8: 2021 | D8: 12 | E8: 7 | F8: 4552.934 | G8: 5048.567 | H8: 110.8860133 | I8: 감축시험
B9: 8 | C9: 2021 | D9: 12 | E9: 20 | F9: 33.602 | G9: 30.917 | H9: 92.0094042 | I9: 감축재시험
B10: 8 | C10: 2021 | D10: 12 | E10: 21 | F10: 422.03 | G10: 456.187 | H10: 108.0935005 | I10: 감축재시험
B11: 8 | C11: 2022 | D11: 6 | E11: 8 | F11: 4923.538 | G11: 5748.986 | H11: 116.7653423 | I11: 감축시험
B12: 8 | C12: 2022 | D12: 6 | E12: 22 | F12: 359.243 | G12: 348.405 | H12: 96.98310058 | I12: 감축재시험
B13: 9 | C13: 2022 | D13: 12 | E13: 2 | F13: 4421.472 | G13: 4974.637 | H13: 112.5108787 | I13: 감축시험
B14: 9 | C14: 2022 | D14: 12 | E14: 19 | F14: 221.728 | G14: 246.422 | H14: 111.1370688 | I14: 감축재시험
B15: 9 | C15: 2023 | D15: 6 | E15: 7 | F15: 2493.101 | G15: 2879.568 | H15: =G15/F15*100 -> 115.5014578 | I15: 감축시험
B16: 9 | C16: 2023 | D16: 6 | E16: 8 | F16: 2419.187 | G16: 2804.538 | H16: 115.9289464 | I16: 감축시험
B17: 9 | C17: 2023 | D17: 6 | E17: 20 | F17: 470.239 | G17: 474.279 | H17: 100.8591376 | I17: 감축재시험
B18: 10 | C18: 2023 | D18: 12 | E18: 5 | F18: 2260.097 | G18: 2602.802 | H18: =G18/F18*100 -> 115.1632872 | I18: 감축시험
B19: 10 | C19: 2023 | D19: 12 | E19: 6 | F19: 2294.557 | G19: 2718.236 | H19: =G19/F19*100 -> 118.4645228 | I19: 감축시험
B20: 10 | C20: 2023 | D20: 12 | E20: 20 | F20: 31.7 | G20: 31.995 | H20: 100.9305994 | I20: 감축재시험
B21: 10 | C21: 2024 | D21: 1 | E21: 23 | F21: 2250.547 | G21: 2154.074 | H21: 95.71335324 | I21: 감축신뢰성시험
B22: 10 | C22: 2024 | D22: 1 | E22: 24 | F22: 2286.657 | G22: 2406.53 | H22: 105.2422816 | I22: 감축신뢰성시험
B23: 10 | C23: 2024 | D23: 6 | E23: 10 | F23: 2329.575 | G23: 2518.774 | H23: 108.1216102 | I23: 감축시험
B24: 10 | C24: 2024 | D24: 6 | E24: 11 | F24: 2299.858 | G24: 2519.409 | H24: 109.546285 | I24: 감축시험
B25: 10 | C25: 2024 | D25: 6 | E25: 20 | F25: 53.851 | G25: 47.584 | H25: 88.3623331 | I25: 감축재시험
B26: 10 | C26: 2024 | D26: 8 | E26: 7 | F26: 32.311 | G26: 28.494 | H26: 88.18668565 | I26: 감축신뢰성시험
B27: 10 | C27: 2024 | D27: 8 | E27: 8 | F27: 2263.08 | G27: 2403.792 | H27: 106.217721 | I27: 감축신뢰성시험
B28: 10 | C28: 2024 | D28: 8 | E28: 12 | F28: 2259.842 | G28: 2301.88 | H28: 101.8602185 | I28: 감축신뢰성시험
B29: 10 | C29: 2024 | D29: 8 | E29: 13 | F29: 705.37 | G29: 672.47 | H29: 95.33578122
B30: 10 | C30: 2024 | D30: 8 | E30: 20 | F30: 913.378 | G30: 773.955 | H30: 84.73545454
B31: 10 | C31: 2024 | D31: 9 | E31: 19 | F31: 5117.439 | G31: 5785.304 | H31: =G31/F31*100 -> 113.0507662
B32: 11 | C32: 2024 | D32: 12 | E32: 4 | F32: 2116.873 | G32: 2304.888 | H32: 108.8817326 | I32: 감축시험
B33: 11 | C33: 2024 | D33: 12 | E33: 5 | F33: 2081.418 | G33: 2227.376 | H33: 107.0124309 | I33: 감축시험
B34: 11 | C34: 2024 | D34: 12 | E34: 16 | F34: 15 | G34: 14.98 | H34: 99.86666667 | I34: 감축재시험
B35: 11 | C35: 2025 | D35: 1 | E35: 15 | F35: 2055.517 | G35: 2061.6 | H35: 100.2959353 | I35: 감축신뢰성시험
B36: 11 | C36: 2025 | D36: 1 | E36: 16 | F36: 2114.84 | G36: 2145.18 | H36: 101.4346239 | I36: 감축신뢰성시험
B37: 11 | C37: 2025 | D37: 6 | E37: 5 | F37: 35.335 | G37: 34.515 | H37: 97.67935475 | I37: 감축시험
B38: 11 | C38: 2025 | D38: 6 | E38: 11 | F38: 2018.339 | G38: 2138.462 | H38: 105.951577 | I38: 감축시험
B39: 11 | C39: 2025 | D39: 6 | E39: 12 | F39: 2321.133 | G39: 2415.381 | H39: 104.0604308 | I39: 감축시험
B40: 11 | C40: 2025 | D40: 6 | E40: 24 | F40: 144.139 | G40: 166.851 | H40: 115.7570123 | I40: 감축재시험
B41: 11 | C41: 2025 | D41: 8 | E41: 20 | F41: 2148.167 | G41: 2131.434 | H41: 99.22105684 | I41: 감축신뢰성시험
B42: 11 | C42: 2025 | D42: 8 | E42: 21 | F42: 2150.443 | G42: 2069.891 | H42: 96.25416716 | I42: 감축신뢰성시험
B44: ㅇ 자발적DR 감축실적
B45: 차수 | C45: 7 | D45: 7 | E45: 7 | F45: 7 | G45: 7 | H45: 7 | I45: 7 | J45: 7 | K45: 7 | L45: 7 | M45: 7 | N45: 7 | O45: 7
B46: 연 | C46: 2020 | D46: 2021 | E46: 2021 | F46: 2021 | G46: 2021 | H46: 2021 | I46: 2021 | J46: 2021 | K46: 2021 | L46: 2021 | M46: 2021 | N46: 2021 | O46: 합 계
B47: 월 | C47: 12 | D47: 1 | E47: 2 | F47: 3 | G47: 4 | H47: 5 | I47: 6 | J47: 7 | K47: 8 | L47: 9 | M47: 10 | N47: 11
B48: 입찰량(MWh) | C48: 82604 | D48: 40950 | E48: 44624 | F48: 55559 | G48: 43829 | H48: 55307 | I48: 65664 | J48: 64552 | K48: 102946 | L48: 69340 | M48: 66018 | N48: 54854 | O48: =SUM(C48:N48) -> 746247
B49: 낙찰량(MWh) | C49: 34971.713 | D49: 15913.058 | E49: 12225.572 | F49: 12938.3 | G49: 27391 | H49: 31050 | I49: 33940 | J49: 34889.7 | K49: 27622 | L49: 33419 | M49: 39140 | N49: 11046 | O49: =SUM(C49:N49) -> 314546.343
B50: 감축량(MWh) | C50: 53220.054 | D50: 22477.291 | E50: 19306.68 | F50: 21333.312 | G50: 47427.513 | H50: 51359.423 | I50: 52682.112 | J50: 55036.646 | K50: 40413.181 | L50: 53375.541 | M50: 59501.409 | N50: 18100.87 | O50: 494234.032
B51: 이행률(%) | C51: =C50/C49*100 -> 152.1802893 | D51: =D50/D49*100 -> 141.2506069 | E51: 157.9204638 | F51: 164.8849694 | G51: 173.1499872 | H51: 165.4087697 | I51: 155.2213082 | J51: 157.7446811 | K51: 146.3079466 | L51: 159.7161525 | M51: 152.0219954 | N51: 163.868097 | O51: 157.1259825
B53: 차수 | C53: 8 | D53: 8 | E53: 8 | F53: 8 | G53: 8 | H53: 8 | I53: 8 | J53: 8 | K53: 8 | L53: 8 | M53: 8 | N53: 8 | O53: 8
B54: 연 | C54: 2021 | D54: 2022 | E54: 2022 | F54: 2022 | G54: 2022 | H54: 2022 | I54: 2022 | J54: 2022 | K54: 2022 | L54: 2022 | M54: 2022 | N54: 2022 | O54: 합 계
B55: 월 | C55: 12 | D55: 1 | E55: 2 | F55: 3 | G55: 4 | H55: 5 | I55: 6 | J55: 7 | K55: 8 | L55: 9 | M55: 10 | N55: 11
B56: 입찰량(MWh) | C56: 73411 | D56: 41737 | E56: 66762 | F56: 58690 | G56: 50563 | H56: 76949 | I56: 84205 | J56: 82595 | K56: 139798 | L56: 74604.7 | M56: 74325.8 | N56: 70575.4 | O56: =SUM(C56:N56) -> 894215.9
B57: 낙찰량(MWh) | C57: 18870 | D57: 6402.4 | E57: 11270 | F57: 12535 | G57: 5436 | H57: 26970 | I57: 21185 | J57: 8582 | K57: 42789 | L57: 9290.708 | M57: 8003.157 | N57: 4989.405 | O57: =SUM(C57:N57) -> 176322.67
B58: 감축량(MWh) | C58: 29282.24 | D58: 9215.756 | E58: 16857.351 | F58: 22307.524 | G58: 9641.667 | H58: 43134.995 | I58: 33865.103 | J58: 13157.735 | K58: 66370.474 | L58: 13768.437 | M58: 11848.902 | N58: 8313.881 | O58: 277764.065
B59: 이행률(%) | C59: =C58/C57*100 -> 155.1788023 | D59: =D58/D57*100 -> 143.9422092 | E59: =E58/E57*100 -> 149.577205 | F59: =F58/F57*100 -> 177.9618987 | G59: =G58/G57*100 -> 177.3669426 | H59: =H58/H57*100 -> 159.9369485 | I59: =I58/I57*100 -> 159.8541562 | J59: =J58/J57*100 -> 153.3178164 | K59: =K58/K57*100 -> 155.1110659 | L59: =L58/L57*100 -> 148.195778 | M59: =M58/M57*100 -> 148.0528496 | N59: =N58/N57*100 -> 166.6307105 | O59: 157.5316804
B61: 차수 | C61: 9 | D61: 9 | E61: 9 | F61: 9 | G61: 9 | H61: 9 | I61: 9 | J61: 9 | K61: 9 | L61: 9 | M61: 9 | N61: 9 | O61: 9
B62: 연 | C62: 2022 | D62: 2023 | E62: 2023 | F62: 2023 | G62: 2023 | H62: 2023 | I62: 2023 | J62: 2023 | K62: 2023 | L62: 2023 | M62: 2023 | N62: 2023 | O62: 합 계
B63: 월 | C63: 12 | D63: 1 | E63: 2 | F63: 3 | G63: 4 | H63: 5 | I63: 6 | J63: 7 | K63: 8 | L63: 9 | M63: 10 | N63: 11
B64: 입찰량(MWh) | C64: 81310.9 | D64: 68484.2 | E64: 64740.1 | F64: 80889.7 | G64: 79244.7 | H64: 81343.2 | I64: 104981.4 | J64: 110246.3 | K64: 122059.1 | L64: 65229.2 | M64: 89740.3 | N64: 110113.7 | O64: =SUM(C64:N64) -> 1058382.8
B65: 낙찰량(MWh) | C65: 29013.756 | D65: 23218.698 | E65: 21683.2 | F65: 10638.8 | G65: 4572 | H65: 5171.94 | I65: 9686.558 | J65: 14988.017 | K65: 24546 | L65: 8716.648 | M65: 4244 | N65: 12584.552 | O65: =SUM(C65:N65) -> 169064.169
B66: 감축량(MWh) | C66: 43360.948 | D66: 34433.662 | E66: 32172.011 | F66: 17679.377 | G66: 7757.247 | H66: 8709.178 | I66: 16532.455 | J66: 21663.011 | K66: 36476.164 | L66: 13736.435 | M66: 5874.826 | N66: 19541.876 | O66: 257937.19
B67: 이행률(%) | C67: =C66/C65*100 -> 149.4496197 | D67: 148.3014336 | E67: 148.3729846 | F67: 166.1783002 | G67: 169.6685696 | H67: 168.3928661 | I67: 170.6741961 | J67: 144.535538 | K67: 148.6032918 | L67: 157.5885019 | M67: 138.4266258 | N67: 155.2846379 | O67: =O66/O65*100 -> 152.5676266
B69: 차수 | C69: 10 | D69: 10 | E69: 10 | F69: 10 | G69: 10 | H69: 10 | I69: 10 | J69: 10 | K69: 10 | L69: 10 | M69: 10 | N69: 10 | O69: 10
B70: 연 | C70: 2023 | D70: 2024 | E70: 2024 | F70: 2024 | G70: 2024 | H70: 2024 | I70: 2024 | J70: 2024 | K70: 2024 | L70: 2024 | M70: 2024 | N70: 2024 | O70: 합 계
B71: 월 | C71: 12 | D71: 1 | E71: 2 | F71: 3 | G71: 4 | H71: 5 | I71: 6 | J71: 7 | K71: 8 | L71: 9 | M71: 10 | N71: 11
B72: 입찰량(MWh) | C72: 88926.4 | D72: 70852.9 | E72: 74577.6 | F72: 85063.4 | G72: 85046.8 | H72: 83446 | I72: 92473.5 | J72: 107146.9 | K72: 95443.4 | L72: 65446.4 | M72: 85012.1 | N72: 83472.9 | O72: =SUM(C72:N72) -> 1016908.3
B73: 낙찰량(MWh) | C73: 13857.723 | D73: 14371.6 | E73: 11990.1 | F73: 7788.62 | G73: 8111 | H73: 7157.666 | I73: 13516.023 | J73: 21510.095 | K73: 35383.989 | L73: 18168.467 | M73: 5054 | N73: 1490 | O73: =SUM(C73:N73) -> 158399.283
B74: 감축량(MWh) | C74: 19953.124 | D74: 23384.041 | E74: 18766.01 | F74: 11996.709 | G74: 13133.05 | H74: 11419.835 | I74: 19276.163 | J74: 30826.818 | K74: 51860.799 | L74: 27842.901 | M74: 7845.528 | N74: 2745.026 | O74: 239050.004
B75: 이행률(%) | C75: 143.9855884 | D75: 162.710074 | E75: 156.5125395 | F75: 154.0286854 | G75: 161.9165331 | H75: 159.546911 | I75: 142.6171219 | J75: 143.3132583 | K75: 146.5657221 | L75: 153.2484882 | M75: 155.2340324 | N75: 184.2299329 | O75: =O74/O73*100 -> 150.9160897
B77: 차수 | C77: 11 | D77: 11 | E77: 11 | F77: 11 | G77: 11 | H77: 11 | I77: 11 | J77: 11 | K77: 11 | L77: 11 | M77: 11 | N77: 11 | O77: 11
B78: 연 | C78: 2024 | D78: 2025 | E78: 2025 | F78: 2025 | G78: 2025 | H78: 2025 | I78: 2025 | J78: 2025 | K78: 2025 | L78: 2025 | M78: 2025 | N78: 2025 | O78: 합 계
B79: 월 | C79: 12 | D79: 1 | E79: 2 | F79: 3 | G79: 4 | H79: 5 | I79: 6 | J79: 7 | K79: 8 | L79: 9 | M79: 10 | N79: 11
B80: 입찰량(MWh) | C80: 93508.5 | D80: 74458.2 | E80: 87793.8 | F80: 108224.7 | G80: 89871.8 | H80: 84589.7 | I80: 83760.6 | J80: 154334.8 | K80: 100986.6 | O80: =SUM(C80:N80) -> 877528.7
B81: 낙찰량(MWh) | C81: 4264.629 | D81: 15169.297 | E81: 5177 | F81: 20894.8 | G81: 10178 | H81: 8802.579 | I81: 6209.901 | J81: 36440.735 | K81: 29431.194 | O81: 136568.135
B82: 감축량(MWh) | C82: 6359.714 | D82: 21131.977 | E82: 7070.404 | F82: 33993.656 | G82: 15249.62 | H82: 13237.842 | I82: 9347.799 | J82: 46460.741 | K82: 41963.419 | O82: 194815.172
B83: 이행률(%) | C83: 149.1270167 | D83: 139.3075566 | E83: 136.5733823 | F83: 162.6895496 | G83: 149.8292395 | H83: 150.3859494 | I83: 150.530564 | J83: 127.4967176 | K83: 142.5814359 | O83: =O82/O81*100 -> 142.6505326
B85: ㅇ 국민DR 감축실적
B86: 연 | C86: 2020 | D86: 2021 | E86: 2021 | F86: 2021 | G86: 2021 | H86: 2021 | I86: 2021 | J86: 2021 | K86: 2021 | L86: 2021 | M86: 2021 | N86: 2021 | O86: 합 계
B87: 월 | C87: 12 | D87: 1 | E87: 2 | F87: 3 | G87: 4 | H87: 5 | I87: 6 | J87: 7 | K87: 8 | L87: 9 | M87: 10 | N87: 11
B88: 감축량(kWh) | C88: 290 | D88: 153 | E88: 99 | F88: 174 | G88: 104 | H88: 87 | I88: 26 | J88: 11 | K88: 114 | L88: 55 | M88: 75 | N88: 109 | O88: =SUM(C88:N88) -> 1297
B90: 연 | C90: =C86+1 -> 2021 | D90: =D86+1 -> 2022 | E90: 2022 | F90: 2022 | G90: 2022 | H90: 2022 | I90: 2022 | J90: 2022 | K90: 2022 | L90: 2022 | M90: 2022 | N90: 2022 | O90: 합 계
B91: 월 | C91: 12 | D91: 1 | E91: 2 | F91: 3 | G91: 4 | H91: 5 | I91: 6 | J91: 7 | K91: 8 | L91: 9 | M91: 10 | N91: 11
B92: 감축량(kWh) | C92: 523 | D92: 361 | E92: 230 | F92: 680 | G92: 989 | H92: 431 | I92: 31 | J92: 410 | K92: 589 | L92: 488 | M92: 144 | N92: 1171 | O92: =SUM(C92:N92) -> 6047
B94: 연 | C94: =C90+1 -> 2022 | D94: =D90+1 -> 2023 | E94: 2023 | F94: 2023 | G94: 2023 | H94: 2023 | I94: 2023 | J94: 2023 | K94: 2023 | L94: 2023 | M94: 2023 | N94: 2023 | O94: 합 계
B95: 월 | C95: 12 | D95: 1 | E95: 2 | F95: 3 | G95: 4 | H95: 5 | I95: 6 | J95: 7 | K95: 8 | L95: 9 | M95: 10 | N95: 11
B96: 감축량(kWh) | C96: 953 | D96: 3376 | E96: 3745 | F96: 6677 | G96: 3077 | H96: 1269 | I96: 403 | J96: 487 | K96: 2301 | L96: 461 | M96: 360 | N96: 1373 | O96: =SUM(C96:N96) -> 24482
B98: 연 | C98: =C94+1 -> 2023 | D98: =D94+1 -> 2024 | E98: 2024 | F98: 2024 | G98: 2024 | H98: 2024 | I98: 2024 | J98: 2024 | K98: 2024 | L98: 2024 | M98: 2024 | N98: 2024 | O98: 합 계
B99: 월 | C99: 12 | D99: 1 | E99: 2 | F99: 3 | G99: 4 | H99: 5 | I99: 6 | J99: 7 | K99: 8 | L99: 9 | M99: 10 | N99: 11
B100: 감축량(kWh) | C100: 5848 | D100: 11342 | E100: 5633 | F100: 5458 | G100: 8115 | H100: 1313 | I100: 1806 | J100: 6361 | K100: 59600 | L100: 2908 | M100: 8944 | N100: 7430 | O100: =SUM(C100:N100) -> 124758
B102: 연 | C102: 2024 | D102: 2025 | E102: 2025 | F102: 2025 | G102: 2025 | H102: 2025 | I102: 2025 | J102: 2025 | K102: 2025 | L102: 2025 | M102: 2025 | N102: 2025 | O102: 합 계
B103: 월 | C103: 12 | D103: 1 | E103: 2 | F103: 3 | G103: 4 | H103: 5 | I103: 6 | J103: 7 | K103: 8 | L103: 9 | M103: 10 | N103: 11
B104: 감축량(kWh) | C104: 23238 | D104: 115945 | E104: 80743 | F104: 239382 | G104: 26050 | H104: 30658 | I104: 16533 | J104: 125170 | K104: 45429 | O104: =SUM(C104:N104) -> 703148
B106: ㅇ 주파수DR 감축실적
B107: 연 | C107: 2020 | D107: 2021 | E107: 2021 | F107: 2021 | G107: 2021 | H107: 2021 | I107: 2021 | J107: 2021 | K107: 2021 | L107: 2021 | M107: 2021 | N107: 2021 | O107: 합 계
B108: 월 | C108: 12 | D108: 1 | E108: 2 | F108: 3 | G108: 4 | H108: 5 | I108: 6 | J108: 7 | K108: 8 | L108: 9 | M108: 10 | N108: 11
B109: 감축량(MWh) | C109: 0 | D109: 0 | E109: 0 | F109: 138.306 | G109: 118.703 | H109: 314.988 | I109: 0 | J109: 0 | K109: 0 | L109: 0 | M109: 0 | N109: 0 | O109: =SUM(C109:N109) -> 571.997
B111: 연 | C111: =C107+1 -> 2021 | D111: 2022 | E111: 2022 | F111: 2022 | G111: 2022 | H111: 2022 | I111: 2022 | J111: 2022 | K111: 2022 | L111: 2022 | M111: 2022 | N111: 2022 | O111: 합 계
B112: 월 | C112: 12 | D112: 1 | E112: 2 | F112: 3 | G112: 4 | H112: 5 | I112: 6 | J112: 7 | K112: 8 | L112: 9 | M112: 10 | N112: 11
B113: 감축량(MWh) | C113: 0 | D113: 0 | E113: 0 | F113: 0 | G113: 258.222 | H113: 0 | I113: 0 | J113: 0 | K113: 0 | L113: 139.656 | M113: 0 | N113: 0 | O113: =SUM(C113:N113) -> 397.878
B115: 연 | C115: =C111+1 -> 2022 | D115: =D111+1 -> 2023 | E115: 2023 | F115: 2023 | G115: 2023 | H115: 2023 | I115: 2023 | J115: 2023 | K115: 2023 | L115: 2023 | M115: 2023 | N115: 2023 | O115: 합 계
B116: 월 | C116: 12 | D116: 1 | E116: 2 | F116: 3 | G116: 4 | H116: 5 | I116: 6 | J116: 7 | K116: 8 | L116: 9 | M116: 10 | N116: 11
B117: 감축량(MWh) | C117: 0 | D117: 0 | E117: 0 | F117: 0 | G117: 0 | H117: 0 | I117: 0 | J117: 0 | K117: - | L117: 0 | M117: 0 | N117: 0 | O117: =SUM(C117:N117) -> 0
B119: 연 | C119: =C115+1 -> 2023 | D119: =D115+1 -> 2024 | E119: 2024 | F119: 2024 | G119: 2024 | H119: 2024 | I119: 2024 | J119: 2024 | K119: 2024 | L119: 2024 | M119: 2024 | N119: 2024 | O119: 합 계
B120: 월 | C120: 12 | D120: 1 | E120: 2 | F120: 3 | G120: 4 | H120: 5 | I120: 6 | J120: 7 | K120: 8 | L120: 9 | M120: 10 | N120: 11
B121: 감축량(MWh) | C121: 0 | D121: 0 | E121: 0 | F121: 162.484 | G121: 0 | H121: 0 | I121: 0 | J121: 3.814 | K121: 0 | L121: 0 | M121: 0 | N121: 0 | O121: =SUM(C121:N121) -> 166.298
B123: 연 | C123: 2024 | D123: 2025 | E123: 2025 | F123: 2025 | G123: 2025 | H123: 2025 | I123: 2025 | J123: 2025 | K123: 2025 | L123: 2025 | M123: 2025 | N123: 2025 | O123: 합 계
B124: 월 | C124: 12 | D124: 1 | E124: 2 | F124: 3 | G124: 4 | H124: 5 | I124: 6 | J124: 7 | K124: 8 | L124: 9 | M124: 10 | N124: 11
B125: 감축량(MWh) | C125: 0 | D125: 0 | E125: 0 | F125: 0 | G125: 0 | H125: 0 | I125: 0 | J125: 0 | K125: 0 | O125: =SUM(C125:N125) -> 0
B127: ㅇ 육지 플러스DR 증대실적
B128: 연 | C128: 2023 | D128: 2024 | E128: 2024 | F128: 2024 | G128: 2024 | H128: 2024 | I128: 2024 | J128: 2024 | K128: 2024 | L128: 2024 | M128: 2024 | N128: 2024 | O128: 합 계
B129: 월 | C129: 12 | D129: 1 | E129: 2 | F129: 3 | G129: 4 | H129: 5 | I129: 6 | J129: 7 | K129: 8 | L129: 9 | M129: 10 | N129: 11
B130: 증대량(MWh) | G130: 2124.948 | H130: 2926.722 | I130: 203.051 | J130: 0 | K130: 0 | L130: 0 | M130: 1932.282 | N130: 0 | O130: =SUM(C130:N130) -> 7187.003
B132: 연 | C132: 2024 | D132: 2025 | E132: 2025 | F132: 2025 | G132: 2025 | H132: 2025 | I132: 2025 | J132: 2025 | K132: 2025 | L132: 2025 | M132: 2025 | N132: 2025 | O132: 합 계
B133: 월 | C133: 12 | D133: 1 | E133: 2 | F133: 3 | G133: 4 | H133: 5 | I133: 6 | J133: 7 | K133: 8 | L133: 9 | M133: 10 | N133: 11
B134: 증대량(MWh) | C134: 0 | D134: 0 | E134: 0 | F134: 7378.289 | G134: 12684.608 | H134: 7979.802 | I134: 2726.966 | J134: 0 | K134: 0 | O134: =SUM(C134:N134) -> 30769.665
B136: ㅇ 제주 플러스DR 증대실적
B137: 연 | C137: 2020 | D137: 2021 | E137: 2021 | F137: 2021 | G137: 2021 | H137: 2021 | I137: 2021 | J137: 2021 | K137: 2021 | L137: 2021 | M137: 2021 | N137: 2021 | O137: 합 계
B138: 월 | C138: 12 | D138: 1 | E138: 2 | F138: 3 | G138: 4 | H138: 5 | I138: 6 | J138: 7 | K138: 8 | L138: 9 | M138: 10 | N138: 11
B139: 증대량(kWh) | G139: 3215 | H139: 15796 | I139: 0 | J139: 0 | K139: 0 | L139: 0 | M139: 467 | N139: 0 | O139: =SUM(C139:N139) -> 19478
B141: 연 | C141: 2021 | D141: 2022 | E141: 2022 | F141: 2022 | G141: 2022 | H141: 2022 | I141: 2022 | J141: 2022 | K141: 2022 | L141: 2022 | M141: 2022 | N141: 2022 | O141: 합 계
B142: 월 | C142: 12 | D142: 1 | E142: 2 | F142: 3 | G142: 4 | H142: 5 | I142: 6 | J142: 7 | K142: 8 | L142: 9 | M142: 10 | N142: 11
B143: 증대량(kWh) | C143: 0 | D143: 0 | E143: 0 | F143: 4873 | G143: 34396 | H143: 48342 | I143: 0 | J143: 0 | K143: 0 | L143: 0 | M143: 40018 | N143: 28291 | O143: =SUM(C143:N143) -> 155920
B145: 연 | C145: =C141+1 -> 2022 | D145: 2023 | E145: 2023 | F145: 2023 | G145: 2023 | H145: 2023 | I145: 2023 | J145: 2023 | K145: 2023 | L145: 2023 | M145: 2023 | N145: 2023 | O145: 합 계
B146: 월 | C146: 12 | D146: 1 | E146: 2 | F146: 3 | G146: 4 | H146: 5 | I146: 6 | J146: 7 | K146: 8 | L146: 9 | M146: 10 | N146: 11
B147: 하루전시장 증대량(kWh) | C147: 0 | D147: 6565 | E147: 26296 | F147: 31532 | G147: 58780 | H147: 25537 | I147: 0 | J147: 0 | K147: 0 | L147: 0 | M147: 14240 | N147: 0 | O147: =SUM(C147:N147) -> 162950
B148: 실시간시장 증대량(kWh) | C148: 0 | D148: 6014 | E148: 37894 | F148: 116194 | G148: 74919 | H148: 66517 | I148: 9187 | J148: 0 | K148: 0 | L148: 0 | M148: 49192 | N148: 0 | O148: =SUM(C148:N148) -> 359917
B150: 연 | C150: =C145+1 -> 2023 | D150: =D145+1 -> 2024 | E150: 2024 | F150: 2024 | G150: 2024 | H150: 2024 | I150: 2024 | J150: 2024 | K150: 2024 | L150: 2024 | M150: 2024 | N150: 2024 | O150: 합 계
B151: 월 | C151: 12 | D151: 1 | E151: 2 | F151: 3 | G151: 4 | H151: 5 | I151: 6 | J151: 7 | K151: 8 | L151: 9 | M151: 10 | N151: 11
B152: 하루전시장 증대량(kWh) | C152: 0 | D152: 0 | E152: 0 | F152: 0 | G152: 0 | H152: 0 | I152: 0 | J152: 0 | K152: 0 | L152: 0 | M152: 0 | N152: 0 | O152: =SUM(C152:N152) -> 0
B153: 실시간시장 증대량(kWh) | C153: 0 | D153: 0 | E153: 0 | F153: 0 | G153: 0 | H153: 0 | I153: 0 | J153: 0 | K153: 0 | L153: 0 | M153: 0 | N153: 0 | O153: =SUM(C153:N153) -> 0
B155: 연 | C155: 2024 | D155: 2025 | E155: 2025 | F155: 2025 | G155: 2025 | H155: 2025 | I155: 2025 | J155: 2025 | K155: 2025 | L155: 2025 | M155: 2025 | N155: 2025 | O155: 합 계
B156: 월 | C156: 12 | D156: 1 | E156: 2 | F156: 3 | G156: 4 | H156: 5 | I156: 6 | J156: 7 | K156: 8 | L156: 9 | M156: 10 | N156: 11
B157: 하루전시장 증대량(kWh) | C157: 0 | D157: 0 | E157: 0 | F157: 0 | G157: 0 | H157: 0 | I157: 0 | J157: 0 | K157: 0 | O157: =SUM(C157:N157) -> 0
B158: 실시간시장 증대량(kWh) | C158: 0 | D158: 0 | E158: 0 | F158: 0 | G158: 0 | H158: 0 | I158: 0 | J158: 0 | K158: 0 | O158: =SUM(C158:N158) -> 0

Sheet 월별 정산금 지급 실적
B2: ㅇ 정산금 지급 실적(백만원)
B3: 차수 | C3: 7 | D3: 7 | E3: 7 | F3: 7 | G3: 7 | H3: 7 | I3: 7 | J3: 7 | K3: 7 | L3: 7 | M3: 7 | N3: 7 | O3: 7
B4: 연 | C4: 2020 | D4: 2021 | E4: 2021 | F4: 2021 | G4: 2021 | H4: 2021 | I4: 2021 | J4: 2021 | K4: 2021 | L4: 2021 | M4: 2021 | N4: 2021 | O4: 합계
B5: 월 | C5: 12 | D5: 1 | E5: 2 | F5: 3 | G5: 4 | H5: 5 | I5: 6 | J5: 7 | K5: 8 | L5: 9 | M5: 10 | N5: 11
B6: 실적정산금 | C6: 2784.355463 | D6: 1142.43547 | E6: 941.515301 | F6: 1095.922435 | G6: 2081.810155 | H6: 2498.335704 | I6: 3347.990187 | J6: 3186.965553 | K6: 2641.880696 | L6: 3505.934769 | M6: 4375.483989 | N6: 1483.145393 | O6: =SUM(C6:N6) -> 29085.77512
B7: 기본정산금 | C7: 19870.43902 | D7: 22121.27028 | E7: 25662.72903 | F7: 3973.902404 | G7: 2340.713022 | H7: 15846.03114 | I7: 4809.96723 | J7: 18647.41548 | K7: 54852.2748 | L7: 7242.229227 | M7: 2235.320741 | N7: 19226.29421 | O7: =SUM(C7:N7) -> 196828.5866
B8: 합 계 | C8: 22654.79449 | D8: 23263.70575 | E8: 26604.24433 | F8: 5069.824839 | G8: 4422.523177 | H8: 18344.36685 | I8: 8157.957417 | J8: 21834.38104 | K8: 57494.15549 | L8: 10748.164 | M8: 6610.80473 | N8: 20709.4396 | O8: =SUM(O6:O7) -> 225914.3617
B10: 차수 | C10: 8 | D10: 8 | E10: 8 | F10: 8 | G10: 8 | H10: 8 | I10: 8 | J10: 8 | K10: 8 | L10: 8 | M10: 8 | N10: 8 | O10: 8
B11: 연 | C11: 2021 | D11: 2022 | E11: 2022 | F11: 2022 | G11: 2022 | H11: 2022 | I11: 2022 | J11: 2022 | K11: 2022 | L11: 2022 | M11: 2022 | N11: 2022 | O11: 합계
B12: 월 | C12: 12 | D12: 1 | E12: 2 | F12: 3 | G12: 4 | H12: 5 | I12: 6 | J12: 7 | K12: 8 | L12: 9 | M12: 10 | N12: 11
B13: 실적정산금 | C13: 3617.452594 | D13: 1072.613271 | E13: 2451.64611 | F13: 2489.953869 | G13: 1155.672204 | H13: 3851.597247 | I13: 3629.638124 | J13: 1400.173372 | K13: 9399.752738 | L13: 2397.523784 | M13: 2203.438137 | N13: 1362.309827 | O13: =SUM(C13:N13) -> 35031.77128
B14: 기본정산금 | C14: 24180.57479 | D14: 20924.32324 | E14: 20043.79576 | F14: 3403.307735 | G14: 2155.491933 | H14: 12695.76373 | I14: 4544.973612 | J14: 21344.48762 | K14: 60532.67372 | L14: 9305.066576 | M14: 2389.289592 | N14: 25228.30327 | O14: =SUM(C14:N14) -> 206748.0516
B15: 합 계 | C15: 27798.02738 | D15: 21996.93652 | E15: 22495.44187 | F15: 5893.261604 | G15: 3311.164137 | H15: 16547.36097 | I15: 8174.611736 | J15: 22744.661 | K15: 69932.42646 | L15: 11702.59036 | M15: 4592.727729 | N15: 26590.6131 | O15: =SUM(O13:O14) -> 241779.8229
B17: 차수 | C17: 9 | D17: 9 | E17: 9 | F17: 9 | G17: 9 | H17: 9 | I17: 9 | J17: 9 | K17: 9 | L17: 9 | M17: 9 | N17: 9 | O17: 9
B18: 연 | C18: 2022 | D18: 2023 | E18: 2023 | F18: 2023 | G18: 2023 | H18: 2023 | I18: 2023 | J18: 2023 | K18: 2023 | L18: 2023 | M18: 2023 | N18: 2023 | O18: 합계
B19: 월 | C19: 12 | D19: 1 | E19: 2 | F19: 3 | G19: 4 | H19: 5 | I19: 6 | J19: 7 | K19: 8 | L19: 9 | M19: 10 | N19: 11
B20: 실적정산금 | C20: 9782.968658 | D20: 6283.224091 | E20: 5821.060162 | F20: 2493.914277 | G20: 870.72086 | H20: 881.602435 | I20: 2480.037771 | J20: 2534.383305 | K20: 4066.928528 | L20: 1408.612771 | M20: 719.499436 | N20: 1798.364775 | O20: =SUM(C20:N20) -> 39141.31707
B21: 기본정산금 | C21: 19078.11342 | D21: 13022.63509 | E21: 29490.07146 | F21: 5360.235137 | G21: 1707.513229 | H21: 11023.37978 | I21: 7975.807468 | J21: 18214.83258 | K21: 54776.83066 | L21: 10643.19838 | M21: 3164.820107 | N21: 34467.75796 | O21: =SUM(C21:N21) -> 208925.1953
B22: 합 계 | C22: 28861.08208 | D22: 19305.85918 | E22: 35311.13162 | F22: 7854.149414 | G22: 2578.234089 | H22: 11904.98222 | I22: 10455.84524 | J22: 20749.10234 | K22: 58843.75918 | L22: 12051.81116 | M22: 3884.319543 | N22: 36266.12273 | O22: =SUM(O20:O21) -> 248066.5123
B24: 차수 | C24: 10 | D24: 10 | E24: 10 | F24: 10 | G24: 10 | H24: 10 | I24: 10 | J24: 10 | K24: 10 | L24: 10 | M24: 10 | N24: 10 | O24: 10
B25: 연 | C25: 2023 | D25: 2024 | E25: 2024 | F25: 2024 | G25: 2024 | H25: 2024 | I25: 2024 | J25: 2024 | K25: 2024 | L25: 2024 | M25: 2024 | N25: 2024 | O25: 합계
B26: 월 | C26: 12 | D26: 1 | E26: 2 | F26: 3 | G26: 4 | H26: 5 | I26: 6 | J26: 7 | K26: 8 | L26: 9 | M26: 10 | N26: 11
B27: 실적정산금 | C27: 3058.177407 | D27: 3460.088079 | E27: 1893.542498 | F27: 1321.433804 | G27: 1268.612814 | H27: 986.078359 | I27: 2592.81149 | J27: 3164.007589 | K27: 6773.760868 | L27: 5178.475264 | M27: 734.059553 | N27: 222.959824 | O27: =SUM(C27:N27) -> 30654.00755
B28: 기본정산금 | C28: 17482.8776 | D28: 13417.26521 | E28: 20143.53194 | F28: 6282.245225 | G28: 3038.413685 | H28: 13362.00371 | I28: 9229.138501 | J28: 15660.32231 | K28: 59688.66452 | L28: 9098.525195 | M28: 4841.211362 | N28: 39976.96913 | O28: =SUM(C28:N28) -> 212221.1684
B29: 합 계 | C29: 20541.05501 | D29: 16877.35329 | E29: 22037.07444 | F29: 7603.679029 | G29: 4307.026499 | H29: 14348.08206 | I29: 11821.94999 | J29: 18824.3299 | K29: 66462.42539 | L29: 14277.00046 | M29: 5575.270915 | N29: 40199.92896 | O29: 242875.1759
B31: 차수 | C31: 11 | D31: 11 | E31: 11 | F31: 11 | G31: 11 | H31: 11 | I31: 11 | J31: 11 | K31: 11 | L31: 11 | M31: 11 | N31: 11 | O31: 11
B32: 연 | C32: 2024 | D32: 2025 | E32: 2025 | F32: 2025 | G32: 2025 | H32: 2025 | I32: 2025 | J32: 2025 | K32: 2025 | L32: 2025 | M32: 2025 | N32: 2025 | O32: 합계
B33: 월 | C33: 12 | D33: 1 | E33: 2 | F33: 3 | G33: 4 | H33: 5 | I33: 6 | J33: 7 | K33: 8 | L33: 9 | M33: 10 | N33: 11
B34: 실적정산금 | C34: 1335.082611 | D34: 2696.696868 | E34: 768.605668 | F34: 2629.632478 | G34: 1467.331489 | H34: 1275.413335 | I34: 1459.414673 | J34: 4682.637692 | K34: 4235.012312 | O34: =SUM(C34:N34) -> 20549.82713
B35: 기본정산금(평일) | C35: 13599.25524 | D35: 9620.757154 | E35: 14773.01704 | F35: 6993.884417 | G35: 3936.774578 | H35: 15450.22431 | I35: 7744.707341 | J35: 13295.1581 | K35: 47651.27409 | O35: =SUM(C35:N35) -> 133065.0523
B36: 기본정산금(휴일) | F36: 116.105528 | G36: 464.422112 | H36: 638.580404 | I36: 0 | J36: 0 | K36: 0 | O36: 1219.108044
B37: 합 계 | C37: 14934.33785 | D37: 12317.45402 | E37: 15541.6227 | F37: 9739.622423 | G37: 5868.528179 | H37: 17364.21805 | I37: 9204.122014 | J37: 17977.79579 | K37: 51886.2864 | O37: 154833.9874
B39: ㅇ 실적정산금(평일) 지급 실적(백만원)
B40: 차수 | C40: 7 | D40: 7 | E40: 7 | F40: 7 | G40: 7 | H40: 7 | I40: 7 | J40: 7 | K40: 7 | L40: 7 | M40: 7 | N40: 7 | O40: 7
B41: 연 | C41: 2020 | D41: 2021 | E41: 2021 | F41: 2021 | G41: 2021 | H41: 2021 | I41: 2021 | J41: 2021 | K41: 2021 | L41: 2021 | M41: 2021 | N41: 2021 | O41: 합계
B42: 월 | C42: 12 | D42: 1 | E42: 2 | F42: 3 | G42: 4 | H42: 5 | I42: 6 | J42: 7 | K42: 8 | L42: 9 | M42: 10 | N42: 11
B43: 신뢰성DR 정산금 | C43: 377.977399 | D43: 0 | E43: 0 | F43: 0 | G43: 0 | H43: 0 | I43: 474.428774 | J43: 0 | K43: 0 | L43: 0 | M43: 0 | N43: 0 | O43: =SUM(C43:N43) -> 852.406173
B44: 자발적DR 정산금 | C44: 2422.965358 | D44: 1158.627653 | E44: 954.065642 | F44: 1105.433972 | G44: 2100.581126 | H44: 2521.589198 | I44: 2900.247883 | J44: 3209.246981 | K44: 2676.908295 | L44: 3530.528151 | M44: 4392.481254 | N44: 1492.145185 | O44: =SUM(C44:N44) -> 28464.8207
B45: 위약금 | C45: 16.587294 | D45: 16.192183 | E45: 12.550341 | F45: 9.511537 | G45: 18.770971 | H45: 23.253494 | I45: 26.68647 | J45: 22.281428 | K45: 35.027599 | L45: 24.593382 | M45: 16.997265 | N45: 8.999792 | O45: 231.451756
B46: 합 계 | C46: =SUM(C43:C44)-C45 -> 2784.355463 | D46: =SUM(D43:D44)-D45 -> 1142.43547 | E46: 941.515301 | F46: 1095.922435 | G46: 2081.810155 | H46: 2498.335704 | I46: 3347.990187 | J46: 3186.965553 | K46: 2641.880696 | L46: 3505.934769 | M46: 4375.483989 | N46: 1483.145393 | O46: 29085.77512
B48: 차수 | C48: 8 | D48: 8 | E48: 8 | F48: 8 | G48: 8 | H48: 8 | I48: 8 | J48: 8 | K48: 8 | L48: 8 | M48: 8 | N48: 8 | O48: 8
B49: 연 | C49: 2021 | D49: 2022 | E49: 2022 | F49: 2022 | G49: 2022 | H49: 2022 | I49: 2022 | J49: 2022 | K49: 2022 | L49: 2022 | M49: 2022 | N49: 2022 | O49: 합계
B50: 월 | C50: 12 | D50: 1 | E50: 2 | F50: 3 | G50: 4 | H50: 5 | I50: 6 | J50: 7 | K50: 8 | L50: 9 | M50: 10 | N50: 11
B51: 신뢰성DR 정산금 | C51: 796.32736 | D51: 0 | E51: 0 | F51: 0 | G51: 0 | H51: 0 | I51: 774.105219 | J51: 0 | K51: 0 | L51: 0 | M51: 0 | N51: 0 | O51: =SUM(C51:N51) -> 1570.432579
B52: 자발적DR 정산금 | C52: 2835.207834 | D52: 1084.55356 | E52: 2456.793384 | F52: 2502.508436 | G52: 1158.468953 | H52: 3870.480626 | I52: 2876.543882 | J52: 1401.361775 | K52: 9440.378368 | L52: 2413.724882 | M52: 2229.439103 | N52: 1370.425871 | O52: =SUM(C52:N52) -> 33639.88667
B53: 위약금 | C53: 14.0826 | D53: 11.940289 | E53: 5.147274 | F53: 12.554567 | G53: 2.796749 | H53: 18.883379 | I53: 21.010977 | J53: 1.188403 | K53: 40.62563 | L53: 16.201098 | M53: 26.000966 | N53: 8.116044 | O53: 178.547976
B54: 합 계 | C54: =SUM(C51:C52)-C53 -> 3617.452594 | D54: =SUM(D51:D52)-D53 -> 1072.613271 | E54: =SUM(E51:E52)-E53 -> 2451.64611 | F54: =SUM(F51:F52)-F53 -> 2489.953869 | G54: =SUM(G51:G52)-G53 -> 1155.672204 | H54: =SUM(H51:H52)-H53 -> 3851.597247 | I54: =SUM(I51:I52)-I53 -> 3629.638124 | J54: =SUM(J51:J52)-J53 -> 1400.173372 | K54: =SUM(K51:K52)-K53 -> 9399.752738 | L54: =SUM(L51:L52)-L53 -> 2397.523784 | M54: =SUM(M51:M52)-M53 -> 2203.438137 | N54: =SUM(N51:N52)-N53 -> 1362.309827 | O54: =SUM(O51:O52)-O53 -> 35031.77128
B56: 차수 | C56: 9 | D56: 9 | E56: 9 | F56: 9 | G56: 9 | H56: 9 | I56: 9 | J56: 9 | K56: 9 | L56: 9 | M56: 9 | N56: 9 | O56: 9
B57: 연 | C57: 2022 | D57: 2023 | E57: 2023 | F57: 2023 | G57: 2023 | H57: 2023 | I57: 2023 | J57: 2023 | K57: 2023 | L57: 2023 | M57: 2023 | N57: 2023 | O57: 합계
B58: 월 | C58: 12 | D58: 1 | E58: 2 | F58: 3 | G58: 4 | H58: 5 | I58: 6 | J58: 7 | K58: 8 | L58: 9 | M58: 10 | N58: 11
B59: 신뢰성DR 정산금 | C59: 1522.064798 | D59: 0 | E59: 0 | F59: 0 | G59: 0 | H59: 0 | I59: 914.26698 | J59: 0 | K59: 0 | L59: 0 | M59: 0 | N59: 0 | O59: =SUM(C59:N59) -> 2436.331778
B60: 자발적DR 정산금 | C60: 8322.932966 | D60: 6320.839568 | E60: 5858.222656 | F60: 2516.574908 | G60: 872.104618 | H60: 885.537599 | I60: 1574.572164 | J60: 2563.090701 | K60: 4080.182076 | L60: 1412.413116 | M60: 723.087901 | N60: 1834.699074 | O60: =SUM(C60:N60) -> 36964.25735
B61: 위약금 | C61: 62.029106 | D61: 37.615477 | E61: 37.162494 | F61: 22.660631 | G61: 1.383758 | H61: 3.935164 | I61: 8.801373 | J61: 28.707396 | K61: 13.253548 | L61: 3.800345 | M61: 3.588465 | N61: 36.334299 | O61: 259.272056
B62: 합 계 | C62: =SUM(C59:C60)-C61 -> 9782.968658 | D62: 6283.224091 | E62: 5821.060162 | F62: 2493.914277 | G62: 870.72086 | H62: 881.602435 | I62: 2480.037771 | J62: 2534.383305 | K62: 4066.928528 | L62: 1408.612771 | M62: 719.499436 | N62: 1798.364775 | O62: =SUM(O59:O60)-O61 -> 39141.31707
B64: 차수 | C64: 10 | D64: 10 | E64: 10 | F64: 10 | G64: 10 | H64: 10 | I64: 10 | J64: 10 | K64: 10 | L64: 10 | M64: 10 | N64: 10 | O64: 10
B65: 연 | C65: 2023 | D65: 2024 | E65: 2024 | F65: 2024 | G65: 2024 | H65: 2024 | I65: 2024 | J65: 2024 | K65: 2024 | L65: 2024 | M65: 2024 | N65: 2024 | O65: 합계
B66: 월 | C66: 12 | D66: 1 | E66: 2 | F66: 3 | G66: 4 | H66: 5 | I66: 6 | J66: 7 | K66: 8 | L66: 9 | M66: 10 | N66: 11
B67: 신뢰성DR 정산금 | C67: 779.780127 | D67: 862.692279 | E67: 0 | F67: 0 | G67: 0 | H67: 0 | I67: 704.14831 | J67: 0 | K67: 1333.108992 | L67: 2466.44158 | M67: 0 | N67: 0 | O67: =SUM(C67:N67) -> 6146.171288
B68: 자발적DR 정산금 | C68: 2296.942589 | D68: 2609.617545 | E68: 1920.831028 | F68: 1331.419173 | G68: 1275.845077 | H68: 1015.432782 | I68: 1903.571924 | J68: 3175.299459 | K68: 5514.919697 | L68: 2746.197807 | M68: 734.63753 | N68: 222.964091 | O68: =SUM(C68:N68) -> 24747.6787
B69: 위약금 | C69: 18.545309 | D69: 12.221745 | E69: 27.28853 | F69: 9.985369 | G69: 7.232263 | H69: 29.354423 | I69: 14.908744 | J69: 11.29187 | K69: 74.267821 | L69: 34.164123 | M69: 0.577977 | N69: 0.004267 | O69: 239.842441
B70: 합 계 | C70: 3058.177407 | D70: 3460.088079 | E70: 1893.542498 | F70: 1321.433804 | G70: 1268.612814 | H70: 986.078359 | I70: 2592.81149 | J70: 3164.007589 | K70: 6773.760868 | L70: 5178.475264 | M70: 734.059553 | N70: 222.959824 | O70: =SUM(O67:O68)-O69 -> 30654.00755
B72: 차수 | C72: 11 | D72: 11 | E72: 11 | F72: 11 | G72: 11 | H72: 11 | I72: 11 | J72: 11 | K72: 11 | L72: 11 | M72: 11 | N72: 11 | O72: 11
B73: 연 | C73: 2024 | D73: 2025 | E73: 2025 | F73: 2025 | G73: 2025 | H73: 2025 | I73: 2025 | J73: 2025 | K73: 2025 | L73: 2025 | M73: 2025 | N73: 2025 | O73: 합계
B74: 월 | C74: 12 | D74: 1 | E74: 2 | F74: 3 | G74: 4 | H74: 5 | I74: 6 | J74: 7 | K74: 8 | L74: 9 | M74: 10 | N74: 11
B75: 신뢰성DR 정산금 | C75: 638.998511 | D75: 625.447291 | E75: 0 | F75: 0 | G75: 0 | H75: 0 | I75: 613.560403 | J75: 0 | K75: 539.24521 | O75: =SUM(C75:N75) -> 2417.251415
B76: 자발적DR 정산금 | C76: 698.49212 | D76: 2095.334542 | E76: 770.375991 | F76: 2641.766403 | G76: 1478.496375 | H76: 1277.824233 | I76: 846.66728 | J76: 4748.294005 | K76: 3712.145654 | O76: =SUM(C76:N76) -> 18269.3966
B77: 위약금 | C77: 2.40802 | D77: 24.084965 | E77: 1.770323 | F77: 12.133925 | G77: 11.164886 | H77: 2.410898 | I77: 0.81301 | J77: 65.656313 | K77: 16.378552 | O77: 136.820892
B78: 합 계 | C78: 1335.082611 | D78: 2696.696868 | E78: 768.605668 | F78: 2629.632478 | G78: 1467.331489 | H78: 1275.413335 | I78: 1459.414673 | J78: 4682.637692 | K78: 4235.012312 | O78: =SUM(O75:O76)-O77 -> 20549.82713
B80: ㅇ 기본정산금(평일) 지급 실적(백만원)
B81: 차수 | C81: 7 | D81: 7 | E81: 7 | F81: 7 | G81: 7 | H81: 7 | I81: 7 | J81: 7 | K81: 7 | L81: 7 | M81: 7 | N81: 7 | O81: 7
B82: 연 | C82: 2020 | D82: 2021 | E82: 2021 | F82: 2021 | G82: 2021 | H82: 2021 | I82: 2021 | J82: 2021 | K82: 2021 | L82: 2021 | M82: 2021 | N82: 2021 | O82: 합계
B83: 월 | C83: 12 | D83: 1 | E83: 2 | F83: 3 | G83: 4 | H83: 5 | I83: 6 | J83: 7 | K83: 8 | L83: 9 | M83: 10 | N83: 11
B84: 고정기본정산금 | C84: 19926.43598 | D84: 22121.27028 | E84: 13332.19603 | F84: 3973.902404 | G84: 2340.713022 | H84: 1963.235942 | I84: 4850.505947 | J84: 18647.41548 | K84: 23190.4013 | L84: 7242.229227 | M84: 2235.320741 | N84: 8058.155137 | O84: =SUM(C84:N84) -> 127881.7815
B85: 차등기본정산금 | C85: 0 | D85: 0 | E85: 12330.53299 | F85: 0 | G85: 0 | H85: 13882.7952 | I85: 0 | J85: 0 | K85: 31661.87349 | L85: 0 | M85: 0 | N85: 11168.13907 | O85: =SUM(C85:N85) -> 69043.34075
B86: 위약금 | C86: 55.996952 | D86: 0 | E86: 0 | F86: 0 | G86: 0 | H86: 0 | I86: 40.538717 | J86: 0 | K86: 0 | L86: 0 | M86: 0 | N86: 0 | O86: 96.535669
B87: 합 계 | C87: =SUM(C84:C85)-C86 -> 19870.43902 | D87: =SUM(D84:D85)-D86 -> 22121.27028 | E87: =SUM(E84:E85)-E86 -> 25662.72902 | F87: =SUM(F84:F85)-F86 -> 3973.902404 | G87: =SUM(G84:G85)-G86 -> 2340.713022 | H87: =SUM(H84:H85)-H86 -> 15846.03114 | I87: =SUM(I84:I85)-I86 -> 4809.96723 | J87: =SUM(J84:J85)-J86 -> 18647.41548 | K87: =SUM(K84:K85)-K86 -> 54852.2748 | L87: =SUM(L84:L85)-L86 -> 7242.229227 | M87: =SUM(M84:M85)-M86 -> 2235.320741 | N87: =SUM(N84:N85)-N86 -> 19226.29421 | O87: =SUM(O84:O85)-O86 -> 196828.5866
B89: 차수 | C89: 8 | D89: 8 | E89: 8 | F89: 8 | G89: 8 | H89: 8 | I89: 8 | J89: 8 | K89: 8 | L89: 8 | M89: 8 | N89: 8 | O89: 8
B90: 연 | C90: 2021 | D90: 2022 | E90: 2022 | F90: 2022 | G90: 2022 | H90: 2022 | I90: 2022 | J90: 2022 | K90: 2022 | L90: 2022 | M90: 2022 | N90: 2022 | O90: 합계
B91: 월 | C91: 12 | D91: 1 | E91: 2 | F91: 3 | G91: 4 | H91: 5 | I91: 6 | J91: 7 | K91: 8 | L91: 9 | M91: 10 | N91: 11
B92: 고정기본정산금 | C92: 24205.53702 | D92: 20924.32324 | E92: 12390.80277 | F92: 3403.307735 | G92: 2155.491933 | H92: 2092.432326 | I92: 4636.003382 | J92: 21344.48762 | K92: 27136.4966 | L92: 9305.066576 | M92: 2389.289592 | N92: 6101.9142 | O92: =SUM(C92:N92) -> 136085.153
B93: 차등기본정산금 | C93: 0 | D93: 0 | E93: 7652.99299 | F93: 0 | G93: 0 | H93: 10603.3314 | I93: 0 | J93: 0 | K93: 33396.17711 | L93: 0 | M93: 0 | N93: 19126.38907 | O93: =SUM(C93:N93) -> 70778.89058
B94: 위약금 | C94: 24.962233 | D94: 0 | E94: 0 | F94: 0 | G94: 0 | H94: 0 | I94: 91.02977 | J94: 0 | K94: 0 | L94: 0 | M94: 0 | N94: 0 | O94: 115.992003
B95: 합 계 | C95: =SUM(C92:C93)-C94 -> 24180.57479 | D95: =SUM(D92:D93)-D94 -> 20924.32324 | E95: =SUM(E92:E93)-E94 -> 20043.79576 | F95: =SUM(F92:F93)-F94 -> 3403.307735 | G95: =SUM(G92:G93)-G94 -> 2155.491933 | H95: =SUM(H92:H93)-H94 -> 12695.76373 | I95: =SUM(I92:I93)-I94 -> 4544.973612 | J95: =SUM(J92:J93)-J94 -> 21344.48762 | K95: =SUM(K92:K93)-K94 -> 60532.67372 | L95: =SUM(L92:L93)-L94 -> 9305.066576 | M95: =SUM(M92:M93)-M94 -> 2389.289592 | N95: =SUM(N92:N93)-N94 -> 25228.30327 | O95: =SUM(O92:O93)-O94 -> 206748.0516
B97: 차수 | C97: 9 | D97: 9 | E97: 9 | F97: 9 | G97: 9 | H97: 9 | I97: 9 | J97: 9 | K97: 9 | L97: 9 | M97: 9 | N97: 9 | O97: 9
B98: 연 | C98: 2022 | D98: 2023 | E98: 2023 | F98: 2023 | G98: 2023 | H98: 2023 | I98: 2023 | J98: 2023 | K98: 2023 | L98: 2023 | M98: 2023 | N98: 2023 | O98: 합계
B99: 월 | C99: 12 | D99: 1 | E99: 2 | F99: 3 | G99: 4 | H99: 5 | I99: 6 | J99: 7 | K99: 8 | L99: 9 | M99: 10 | N99: 11
B100: 고정기본정산금 | C100: 19224.69088 | D100: 13022.63509 | E100: 10951.13879 | F100: 5360.235137 | G100: 1707.513229 | H100: 1973.03473 | I100: 8154.85554 | J100: 18215.33214 | K100: 19698.4359 | L100: 10643.19838 | M100: 3164.820107 | N100: 9410.779227 | O100: =SUM(C100:N100) -> 121526.6692
B101: 차등기본정산금 | C101: 0 | D101: 0 | E101: 18538.93267 | F101: 0 | G101: 0 | H101: 9050.345053 | I101: 0 | J101: 0 | K101: 35078.39475 | L101: 0 | M101: 0 | N101: 25056.97873 | O101: =SUM(C101:N101) -> 87724.6512
B102: 위약금 | C102: 146.577459 | D102: 0 | E102: 0 | F102: 0 | G102: 0 | H102: 0 | I102: 179.048072 | J102: 0.499566 | K102: 0 | L102: 0 | M102: 0 | N102: 0 | O102: 326.125097
B103: 합 계 | C103: =SUM(C100:C101)-C102 -> 19078.11342 | D103: =SUM(D100:D101)-D102 -> 13022.63509 | E103: =SUM(E100:E101)-E102 -> 29490.07146 | F103: =SUM(F100:F101)-F102 -> 5360.235137 | G103: =SUM(G100:G101)-G102 -> 1707.513229 | H103: =SUM(H100:H101)-H102 -> 11023.37978 | I103: =SUM(I100:I101)-I102 -> 7975.807468 | J103: =SUM(J100:J101)-J102 -> 18214.83258 | K103: 54776.83066 | L103: 10643.19838 | M103: 3164.820107 | N103: 34467.75796 | O103: =SUM(O100:O101)-O102 -> 208925.1953
B105: 차수 | C105: 10 | D105: 10 | E105: 10 | F105: 10 | G105: 10 | H105: 10 | I105: 10 | J105: 10 | K105: 10 | L105: 10 | M105: 10 | N105: 10 | O105: 10
B106: 연 | C106: 2023 | D106: 2024 | E106: 2024 | F106: 2024 | G106: 2024 | H106: 2024 | I106: 2024 | J106: 2024 | K106: 2024 | L106: 2024 | M106: 2024 | N106: 2024 | O106: 합계
B107: 월 | C107: 12 | D107: 1 | E107: 2 | F107: 3 | G107: 4 | H107: 5 | I107: 6 | J107: 7 | K107: 8 | L107: 9 | M107: 10 | N107: 11
B108: 고정기본정산금 | C108: 17528.75002 | D108: 13925.15521 | E108: 10691.6861 | F108: 6282.245225 | G108: 3038.413685 | H108: 3483.387976 | I108: 9336.807878 | J108: 15661.26038 | K108: 14451.25533 | L108: 9521.627275 | M108: 4841.211362 | N108: 8308.163498 | O108: =SUM(C108:N108) -> 117069.9639
B109: 차등기본정산금 | C109: 0 | D109: 0 | E109: 9451.84584 | F109: 0 | G109: 0 | H109: 9878.615729 | I109: 0 | J109: 0 | K109: 45957.75998 | L109: 0 | M109: 0 | N109: 31668.80563 | O109: =SUM(C109:N109) -> 96957.02719
B110: 위약금 | C110: 45.872418 | D110: 507.889995 | E110: 0 | F110: 0 | G110: 0 | H110: 0 | I110: 107.669377 | J110: 0.93807 | K110: 720.350799 | L110: 423.10208 | M110: 0 | N110: 0 | O110: 1805.822739
B111: 합 계 | C111: 17482.8776 | D111: 13417.26521 | E111: 20143.53194 | F111: 6282.245225 | G111: 3038.413685 | H111: 13362.00371 | I111: 9229.138501 | J111: 15660.32231 | K111: 59688.66452 | L111: 9098.525195 | M111: 4841.211362 | N111: 39976.96913 | O111: =SUM(O108:O109)-O110 -> 212221.1684
B113: 차수 | C113: 11 | D113: 11 | E113: 11 | F113: 11 | G113: 11 | H113: 11 | I113: 11 | J113: 11 | K113: 11 | L113: 11 | M113: 11 | N113: 11 | O113: 10
B114: 연 | C114: 2024 | D114: 2025 | E114: 2025 | F114: 2025 | G114: 2025 | H114: 2025 | I114: 2025 | J114: 2025 | K114: 2025 | L114: 2025 | M114: 2025 | N114: 2025 | O114: 합계
B115: 월 | C115: 12 | D115: 1 | E115: 2 | F115: 3 | G115: 4 | H115: 5 | I115: 6 | J115: 7 | K115: 8 | L115: 9 | M115: 10 | N115: 11
B116: 고정기본정산금 | C116: 13653.83149 | D116: 9815.153793 | E116: 9510.955105 | F116: 6993.884417 | G116: 3936.774578 | H116: 3601.426778 | I116: 7959.081207 | J116: 13295.1581 | K116: 11430.59619 | O116: =SUM(C116:N116) -> 80196.86166
B117: 차등기본정산금 | C117: 0 | D117: 0 | E117: 5262.06193 | F117: 0 | G117: 0 | H117: 11848.79753 | I117: 0 | J117: 0 | K117: 36784.58161 | O117: =SUM(C117:N117) -> 53895.44107
B118: 위약금 | C118: 54.576251 | D118: 194.396639 | E118: 0 | F118: 0 | G118: 0 | H118: 0 | I118: 214.373866 | J118: 0 | K118: 563.903712 | O118: 1027.250468
B119: 합 계 | C119: 13599.25524 | D119: 9620.757154 | E119: 14773.01704 | F119: 7109.989945 | G119: 4401.19669 | H119: 16088.80472 | I119: 7744.707341 | J119: 13295.1581 | K119: 47651.27409 | O119: =SUM(O116:O117)-O118 -> 133065.0523
B121: ㅇ 정산금(휴일) 지급 실적(백만원)
B122: 차수 | C122: 11 | D122: 11 | E122: 11 | F122: 11 | G122: 11 | H122: 11 | I122: 11 | J122: 11 | K122: 11 | L122: 11 | M122: 11 | N122: 11 | O122: 10
B123: 연 | C123: 2024 | D123: 2025 | E123: 2025 | F123: 2025 | G123: 2025 | H123: 2025 | I123: 2025 | J123: 2025 | K123: 2025 | L123: 2025 | M123: 2025 | N123: 2025 | O123: 합계
B124: 월 | C124: 12 | D124: 1 | E124: 2 | F124: 3 | G124: 4 | H124: 5 | I124: 6 | J124: 7 | K124: 8 | L124: 9 | M124: 10 | N124: 11
B125: 실적정산금 | F125: 0 | G125: 0 | H125: 0 | I125: 0 | J125: 0 | K125: 0 | O125: =SUM(C125:N125) -> 0
B126: 기본정산금 | F126: 116.105528 | G126: 464.422112 | H126: 638.580404 | I126: 0 | J126: 0 | K126: 0 | O126: =SUM(C126:N126) -> 1219.108044
B127: 위약금 | F127: 0 | G127: 0 | H127: 0 | I127: 0 | J127: 0 | K127: 0 | O127: 0
B128: 합 계 | F128: 116.105528 | G128: 464.422112 | H128: 638.580404 | I128: 0 | J128: 0 | K128: 0 | O128: =SUM(O125:O126)-O127 -> 1219.108044
B130: ㅇ 국민DR 정산금
B131: 연 | C131: 2020 | D131: 2021 | E131: 2021 | F131: 2021 | G131: 2021 | H131: 2021 | I131: 2021 | J131: 2021 | K131: 2021 | L131: 2021 | M131: 2021 | N131: 2021 | O131: 합 계
B132: 월 | C132: 12 | D132: 1 | E132: 2 | F132: 3 | G132: 4 | H132: 5 | I132: 6 | J132: 7 | K132: 8 | L132: 9 | M132: 10 | N132: 11
B133: 정산금(천원) | C133: 366.197 | D133: 190.289 | E133: 123.196 | F133: 226.768 | G133: 129.466 | H133: 108.66 | I133: 33.036 | J133: 16.737 | K133: 147.848 | L133: 72.512 | M133: 99.645 | N133: 149.629 | O133: =SUM(C133:N133) -> 1663.983
B135: 연 | C135: =C131+1 -> 2021 | D135: =D131+1 -> 2022 | E135: 2022 | F135: 2022 | G135: 2022 | H135: 2022 | I135: 2022 | J135: 2022 | K135: 2022 | L135: 2022 | M135: 2022 | N135: 2022 | O135: 합 계
B136: 월 | C136: 12 | D136: 1 | E136: 2 | F136: 3 | G136: 4 | H136: 5 | I136: 6 | J136: 7 | K136: 8 | L136: 9 | M136: 10 | N136: 11
B137: 정산금(천원) | C137: 739.076 | D137: 501.498 | E137: 331.887 | F137: 1009.205 | G137: 1468.769 | H137: 680.458 | I137: 47.032 | J137: 629.681 | K137: 944.506 | L137: 815.906 | M137: 286.183 | N137: 1964.841 | O137: =SUM(C137:N137) -> 9419.042
B139: 연 | C139: =C135+1 -> 2022 | D139: =D135+1 -> 2023 | E139: 2023 | F139: 2023 | G139: 2023 | H139: 2023 | I139: 2023 | J139: 2023 | K139: 2023 | L139: 2023 | M139: 2023 | N139: 2023 | O139: 합 계
B140: 월 | C140: 12 | D140: 1 | E140: 2 | F140: 3 | G140: 4 | H140: 5 | I140: 6 | J140: 7 | K140: 8 | L140: 9 | M140: 10 | N140: 11
B141: 정산금(천원) | C141: 1641.18 | D141: 5913.265 | E141: 6301.669 | F141: 11918.7 | G141: 4877.663 | H141: 1990.862 | I141: 614.506 | J141: 787.144 | K141: 4018.801 | L141: 737.745 | M141: 628.871 | N141: 2144.193 | O141: =SUM(C141:N141) -> 41574.599
B143: 연 | C143: 2023 | D143: =D139+1 -> 2024 | E143: 2024 | F143: 2024 | G143: 2024 | H143: 2024 | I143: 2024 | J143: 2024 | K143: 2024 | L143: 2024 | M143: 2024 | N143: 2024 | O143: 합 계
B144: 월 | C144: 12 | D144: 1 | E144: 2 | F144: 3 | G144: 4 | H144: 5 | I144: 6 | J144: 7 | K144: 8 | L144: 9 | M144: 10 | N144: 11
B145: 정산금(천원) | C145: 9358.781 | D145: 18925.743 | E145: 9194.376 | F145: 9061.965 | G145: 13297.134 | H145: 2122.236 | I145: 3014.236 | J145: 11516.995 | K145: 112228.209 | L145: 5355.495 | M145: 14594.447 | N145: 11860.82 | O145: =SUM(C145:N145) -> 220530.437
B147: 연 | C147: 2024 | D147: 2025 | E147: 2025 | F147: 2025 | G147: 2025 | H147: 2025 | I147: 2025 | J147: 2025 | K147: 2025 | L147: 2025 | M147: 2025 | N147: 2025 | O147: 합 계
B148: 월 | C148: 12 | D148: 1 | E148: 2 | F148: 3 | G148: 4 | H148: 5 | I148: 6 | J148: 7 | K148: 8 | L148: 9 | M148: 10 | N148: 11
B149: 정산금(천원) | C149: 37206.385 | D149: 187064.081 | E149: 129025.401 | F149: 396553.404 | G149: 43480.181 | H149: 56603.755 | I149: 26791.699 | J149: 202949.993 | K149: 73400.323 | O149: =SUM(C149:N149) -> 1153075.222
B151: ㅇ 주파수DR 정산금
B152: 연 | C152: 2020 | D152: 2021 | E152: 2021 | F152: 2021 | G152: 2021 | H152: 2021 | I152: 2021 | J152: 2021 | K152: 2021 | L152: 2021 | M152: 2021 | N152: 2021 | O152: 합 계
B153: 월 | C153: 12 | D153: 1 | E153: 2 | F153: 3 | G153: 4 | H153: 5 | I153: 6 | J153: 7 | K153: 8 | L153: 9 | M153: 10 | N153: 11
B154: 정산금(백만원) | C154: 0 | D154: 0 | E154: 0 | F154: 2335.469692 | G154: 1202.669123 | H154: 2127.58645 | I154: 0 | J154: 0 | K154: 0 | L154: 0 | M154: 0 | N154: 0 | O154: =SUM(C154:N154) -> 5665.725265
B156: 연 | C156: =C152+1 -> 2021 | D156: 2022 | E156: 2022 | F156: 2022 | G156: 2022 | H156: 2022 | I156: 2022 | J156: 2022 | K156: 2022 | L156: 2022 | M156: 2022 | N156: 2022 | O156: 합 계
B157: 월 | C157: 12 | D157: 1 | E157: 2 | F157: 3 | G157: 4 | H157: 5 | I157: 6 | J157: 7 | K157: 8 | L157: 9 | M157: 10 | N157: 11
B158: 정산금(백만원) | C158: 0 | D158: 0 | E158: 0 | F158: 0 | G158: 3233.669585 | H158: 0 | I158: 0 | J158: 0 | K158: 0 | L158: 907.371566 | M158: 0 | N158: 0 | O158: =SUM(C158:N158) -> 4141.041151
B160: 연 | C160: =C156+1 -> 2022 | D160: =D156+1 -> 2023 | E160: 2023 | F160: 2023 | G160: 2023 | H160: 2023 | I160: 2023 | J160: 2023 | K160: 2023 | L160: 2023 | M160: 2023 | N160: 2023 | O160: 합 계
B161: 월 | C161: 12 | D161: 1 | E161: 2 | F161: 3 | G161: 4 | H161: 5 | I161: 6 | J161: 7 | K161: 8 | L161: 9 | M161: 10 | N161: 11
B162: 정산금(백만원) | C162: 0 | D162: 0 | E162: 0 | F162: 0 | G162: 0 | H162: 0 | I162: 0 | J162: 0 | K162: 0 | L162: 0 | M162: 0 | N162: 1052.092375 | O162: =SUM(C162:N162) -> 1052.092375
B164: 연 | C164: =C160+1 -> 2023 | D164: =D160+1 -> 2024 | E164: 2024 | F164: 2024 | G164: 2024 | H164: 2024 | I164: 2024 | J164: 2024 | K164: 2024 | L164: 2024 | M164: 2024 | N164: 2024 | O164: 합 계
B165: 월 | C165: 12 | D165: 1 | E165: 2 | F165: 3 | G165: 4 | H165: 5 | I165: 6 | J165: 7 | K165: 8 | L165: 9 | M165: 10 | N165: 11
B166: 정산금(백만원) | C166: 0 | D166: 0 | E166: 0 | F166: 3232.742 | G166: 0 | H166: 0 | I166: 0 | J166: 15.475843 | K166: 0 | L166: 0 | M166: 0 | N166: 876.416643 | O166: =SUM(C166:N166) -> 4124.634486
B168: 연 | C168: 2024 | D168: 2025 | E168: 2025 | F168: 2025 | G168: 2025 | H168: 2025 | I168: 2025 | J168: 2025 | K168: 2025 | L168: 2025 | M168: 2025 | N168: 2025 | O168: 합 계
B169: 월 | C169: 12 | D169: 1 | E169: 2 | F169: 3 | G169: 4 | H169: 5 | I169: 6 | J169: 7 | K169: 8 | L169: 9 | M169: 10 | N169: 11
B170: 정산금(백만원) | C170: 0 | D170: 0 | E170: 0 | F170: 0 | G170: 0 | H170: 0 | I170: 0 | J170: 0 | K170: 0 | O170: =SUM(C170:N170) -> 0
B172: ㅇ 육지 플러스DR 정산금
B173: 연 | C173: 2023 | D173: 2024 | E173: 2024 | F173: 2024 | G173: 2024 | H173: 2024 | I173: 2024 | J173: 2024 | K173: 2024 | L173: 2024 | M173: 2024 | N173: 2024 | O173: 합 계
B174: 월 | C174: 12 | D174: 1 | E174: 2 | F174: 3 | G174: 4 | H174: 5 | I174: 6 | J174: 7 | K174: 8 | L174: 9 | M174: 10 | N174: 11
B175: 정산금(백만원) | G175: 98.950148 | H175: 135.472931 | I175: 9.540824 | J175: 0 | K175: 0 | L175: 0 | M175: 80.733011 | N175: 0 | O175: =SUM(C175:N175) -> 324.696914
B176: 재배분 정산금(백만원) | G176: 0 | H176: 0 | I176: 0 | J176: 0 | K176: 0 | L176: 0 | M176: 0 | N176: 0 | O176: =SUM(C176:N176) -> 0
B177: 합 계 | G177: 98.950148 | H177: 135.472931 | I177: 9.540824 | J177: 0 | K177: 0 | L177: 0 | M177: 80.733011 | N177: 0 | O177: =SUM(O175:O176) -> 324.696914
B179: 연 | C179: 2024 | D179: 2025 | E179: 2025 | F179: 2025 | G179: 2025 | H179: 2025 | I179: 2025 | J179: 2025 | K179: 2025 | L179: 2025 | M179: 2025 | N179: 2025 | O179: 합 계
B180: 월 | C180: 12 | D180: 1 | E180: 2 | F180: 3 | G180: 4 | H180: 5 | I180: 6 | J180: 7 | K180: 8 | L180: 9 | M180: 10 | N180: 11
B181: 정산금(백만원) | C181: 0 | D181: 0 | E181: 0 | F181: 322.89385 | G181: 561.536583 | H181: 326.519718 | I181: 104.973655 | J181: 0 | K181: 0 | O181: =SUM(C181:N181) -> 1315.923806
B182: 재배분 정산금(백만원) | C182: 0 | D182: 0 | E182: 0 | F182: 0 | G182: 0 | H182: -410.950147 | I182: 0 | J182: 0 | K182: 0 | O182: =SUM(C182:N182) -> -410.950147
B183: 합 계 | C183: 0 | D183: 0 | E183: 0 | F183: 322.89385 | G183: 561.536583 | H183: -84.430429 | I183: 104.973655 | J183: 0 | K183: 0 | O183: =SUM(O181:O182) -> 904.973659
B186: ㅇ 제주 플러스DR 정산금
B187: 연 | C187: 2020 | D187: 2021 | E187: 2021 | F187: 2021 | G187: 2021 | H187: 2021 | I187: 2021 | J187: 2021 | K187: 2021 | L187: 2021 | M187: 2021 | N187: 2021 | O187: 합 계
B188: 월 | C188: 12 | D188: 1 | E188: 2 | F188: 3 | G188: 4 | H188: 5 | I188: 6 | J188: 7 | K188: 8 | L188: 9 | M188: 10 | N188: 11
B189: 정산금(천원) | G189: 206.872 | H189: 552.546 | I189: 0 | J189: 0 | K189: 0 | L189: 0 | M189: 42.046 | N189: 0 | O189: =SUM(C189:N189) -> 801.464
B191: 연 | C191: 2021 | D191: 2022 | E191: 2022 | F191: 2022 | G191: 2022 | H191: 2022 | I191: 2022 | J191: 2022 | K191: 2022 | L191: 2022 | M191: 2022 | N191: 2022 | O191: 합 계
B192: 월 | C192: 12 | D192: 1 | E192: 2 | F192: 3 | G192: 4 | H192: 5 | I192: 6 | J192: 7 | K192: 8 | L192: 9 | M192: 10 | N192: 11
B193: 정산금(천원) | C193: 0 | D193: 0 | E193: 0 | F193: 735.652 | G193: 4969 | H193: 5053 | I193: 0 | J193: 0 | K193: 0 | L193: 0 | M193: 8246 | N193: 5535 | O193: =SUM(C193:N193) -> 24538.652
B195: 연 | C195: =C191+1 -> 2022 | D195: 2023 | E195: 2023 | F195: 2023 | G195: 2023 | H195: 2023 | I195: 2023 | J195: 2023 | K195: 2023 | L195: 2023 | M195: 2023 | N195: 2023 | O195: 합 계
B196: 월 | C196: 12 | D196: 1 | E196: 2 | F196: 3 | G196: 4 | H196: 5 | I196: 6 | J196: 7 | K196: 8 | L196: 9 | M196: 10 | N196: 11
B197: 하루전시장 정산금(천원) | C197: 0 | D197: 1472 | E197: 5468 | F197: 4907 | G197: 7807 | H197: 3026 | I197: 0 | J197: 0 | K197: 0 | L197: 0 | M197: 1753 | N197: 0 | O197: =SUM(C197:N197) -> 24433
B198: 실시간시장 정산금(천원) | C198: 0 | D198: 1503 | E198: 9346 | F198: 23908 | G198: 10836 | H198: 8495 | I198: 1472.881 | J198: 0 | K198: 0 | L198: 0 | M198: 6344 | N198: 0 | O198: =SUM(C198:N198) -> 61904.881
B200: 연 | C200: 2023 | D200: 2024 | E200: 2024 | F200: 2024 | G200: 2024 | H200: 2024 | I200: 2024 | J200: 2024 | K200: 2024 | L200: 2024 | M200: 2024 | N200: 2024 | O200: 합 계
B201: 월 | C201: 12 | D201: 1 | E201: 2 | F201: 3 | G201: 4 | H201: 5 | I201: 6 | J201: 7 | K201: 8 | L201: 9 | M201: 10 | N201: 11
B202: 하루전시장 정산금(천원) | C202: 0 | D202: 0 | E202: 0 | F202: 0 | G202: 0 | H202: 0 | I202: 0 | J202: 0 | K202: 0 | L202: 0 | M202: 0 | O202: =SUM(C202:N202) -> 0
B203: 실시간시장 정산금(천원) | C203: 0 | D203: 0 | E203: 0 | F203: 0 | G203: 0 | H203: 0 | I203: 0 | J203: 0 | K203: 0 | L203: 0 | M203: 0 | O203: =SUM(C203:N203) -> 0
B205: 연 | C205: 2024 | D205: 2025 | E205: 2025 | F205: 2025 | G205: 2025 | H205: 2025 | I205: 2025 | J205: 2025 | K205: 2025 | L205: 2025 | M205: 2025 | N205: 2025 | O205: 합 계
B206: 월 | C206: 12 | D206: 1 | E206: 2 | F206: 3 | G206: 4 | H206: 5 | I206: 6 | J206: 7 | K206: 8 | L206: 9 | M206: 10 | N206: 11
B207: 하루전시장 정산금(천원) | C207: 0 | D207: 0 | E207: 0 | F207: 0 | G207: 0 | H207: 0 | I207: 0 | J207: 0 | K207: 0 | O207: =SUM(C207:N207) -> 0
B208: 실시간시장 정산금(천원) | C208: 0 | D208: 0 | E208: 0 | F208: 0 | G208: 0 | H208: 0 | I208: 0 | J208: 0 | K208: 0 | O208: =SUM(C208:N208) -> 0

Sheet 사업자별 평일 신뢰성DR 감축이행률
B2: ㅇ 신뢰성DR 감축이행률
B3: 연 | C3: 2024 | D3: 2025 | E3: 2025 | F3: 2025 | G3: 2025 | H3: 2025 | I3: 2025 | J3: 2025 | K3: 2025 | L3: 2025 | M3: 2025 | N3: 2025
B4: 월 | C4: 12 | D4: 1 | E4: 2 | F4: 3 | G4: 4 | H4: 5 | I4: 6 | J4: 7 | K4: 8 | L4: 9 | M4: 10 | N4: 11 | O4: 평균
B5: 사업자01 | C5: 101.0448947 | D5: 116.6439945 | E5: - | F5: - | G5: - | H5: - | I5: 116.3965972 | J5: - | K5: 79.43893914 | L5: - | M5: - | N5: - | O5: 102.8734877
B6: 사업자02 | C6: 96.78745029 | D6: 96.60086226 | E6: - | F6: - | G6: - | H6: - | I6: 92.40753347 | J6: - | K6: 65.97092624 | L6: - | M6: - | N6: - | O6: 88.42434127
B7: 사업자03 | C7: 101.2115257 | D7: 97.54860498 | E7: - | F7: - | G7: - | H7: - | I7: 98.51708969 | J7: - | K7: 95.97744588 | L7: - | M7: - | N7: - | O7: 98.33488956
B8: 사업자04 | C8: 87.20595636 | D8: 93.47662012 | E8: - | F8: - | G8: - | H8: - | I8: - | J8: - | K8: - | L8: - | M8: - | N8: - | O8: 89.89800803
B9: 사업자05 | C9: 110.7785642 | D9: 86.10717897 | E9: - | F9: - | G9: - | H9: - | I9: 71.26390293 | J9: - | K9: 116.430193 | L9: - | M9: - | N9: - | O9: 94.57486791
B10: 사업자06 | C10: 116.6312115 | D10: 99.2060044 | E10: - | F10: - | G10: - | H10: - | I10: 113.1428743 | J10: - | K10: 105.997663 | L10: - | M10: - | N10: - | O10: 108.7444383
B11: 사업자07 | C11: 115.2723627 | D11: 97.04921857 | E11: - | F11: - | G11: - | H11: - | I11: 111.3316005 | J11: - | K11: 106.5170666 | L11: - | M11: - | N11: - | O11: 107.5426729
B12: 사업자08 | C12: 114.7095436 | D12: 102.9834025 | E12: - | F12: - | G12: - | H12: - | I12: 97.4811828 | J12: - | K12: 104.4909091 | L12: - | M12: - | N12: - | O12: 103.9636929
B13: 사업자09 | C13: 105.6117096 | D13: 93.09582529 | E13: - | F13: - | G13: - | H13: - | I13: 105.1985172 | J13: - | K13: 95.12836767 | L13: - | M13: - | N13: - | O13: 99.77184688
B14: 사업자10 | C14: 101.4261844 | D14: 107.747523 | E14: - | F14: - | G14: - | H14: - | I14: 103.2740513 | J14: - | K14: 102.1651644 | L14: - | M14: - | N14: - | O14: 103.606363
B15: 사업자11 | C15: 130.1238868 | D15: 110.0193881 | E15: - | F15: - | G15: - | H15: - | I15: 112.132365 | J15: - | K15: 113.1396544 | L15: - | M15: - | N15: - | O15: 116.3611811
B16: 사업자12 | C16: 161.655481 | D16: 129.9328859 | E16: - | F16: - | G16: - | H16: - | I16: 114.6308725 | J16: - | K16: 88.94854586 | L16: - | M16: - | N16: - | O16: 123.7919463
B17: 사업자13 | C17: 127.9836766 | D17: 113.5097726 | E17: - | F17: - | G17: - | H17: - | I17: 73.33126506 | J17: - | K17: 93.38710832 | L17: - | M17: - | N17: - | O17: 96.30861752
B18: 사업자14 | C18: 111.8489969 | D18: 89.62348058 | E18: - | F18: - | G18: - | H18: - | I18: 71.97271177 | J18: - | K18: 99.22237697 | L18: - | M18: - | N18: - | O18: 91.8162606
B19: 사업자15 | C19: 110.9179661 | D19: 107.319322 | E19: - | F19: - | G19: - | H19: - | I19: 111.0237288 | J19: - | K19: 95.6007582 | L19: - | M19: - | N19: - | O19: 106.3265558
B20: 사업자16 | C20: 101.6853147 | D20: 104.9009324 | E20: - | F20: - | G20: - | H20: - | I20: 94.32512404 | J20: - | K20: 99.71949826 | L20: - | M20: - | N20: - | O20: 100.102896
B21: 사업자17 | C21: 114.4818304 | D21: 112.846568 | E21: - | F21: - | G21: - | H21: - | I21: 59.37431394 | J21: - | K21: 81.88254665 | L21: - | M21: - | N21: - | O21: 83.35624556
B22: 사업자18 | C22: 115.3104448 | D22: 81.87493033 | E22: - | F22: - | G22: - | H22: - | I22: 79.18221593 | J22: - | K22: 91.86899136 | L22: - | M22: - | N22: - | O22: 90.07601401
B23: 사업자19 | C23: 97.46956641 | D23: 109.6704871 | E23: - | F23: - | G23: - | H23: - | I23: 62.2277937 | J23: - | K23: 76.83698297 | L23: - | M23: - | N23: - | O23: 81.95316132
B24: 사업자20 | C24: 103.811256 | D24: 99.00549073 | E24: - | F24: - | G24: - | H24: - | I24: 112.1517349 | J24: - | K24: 98.41758411 | L24: - | M24: - | N24: - | O24: 103.7047763
B25: 사업자21 | C25: 108.9293629 | D25: 104.5581717 | E25: - | F25: - | G25: - | H25: - | I25: 102.5609418 | J25: - | K25: 119.9260506 | L25: - | M25: - | N25: - | O25: 108.8907297
B26: 사업자22 | C26: 122.3977695 | D26: 124.535316 | E26: - | F26: - | G26: - | H26: - | I26: 105.5510861 | J26: - | K26: 93.96621078 | L26: - | M26: - | N26: - | O26: 106.9202695
B27: 사업자23 | C27: 144.7774648 | D27: 147.5014085 | E27: - | F27: - | G27: - | H27: - | I27: 114.8617647 | J27: - | K27: 124.922549 | L27: - | M27: - | N27: - | O27: 130.6641618
B28: 사업자24 | C28: 84.94490911 | D28: 107.2484831 | E28: - | F28: - | G28: - | H28: - | I28: 81.78163692 | J28: - | K28: 97.5077976 | L28: - | M28: - | N28: - | O28: 91.05109356
B29: 사업자25 | C29: 121.4387755 | D29: 131.4081633 | E29: - | F29: - | G29: - | H29: - | I29: 121.7142857 | J29: - | K29: 139.5918367 | L29: - | M29: - | N29: - | O29: 128.5382653
B30: 사업자26 | C30: 102.5570583 | D30: 119.6956889 | E30: - | F30: - | G30: - | H30: - | I30: 97.27387997 | J30: - | K30: 60.96787828 | L30: - | M30: - | N30: - | O30: 95.12362637
B31: 사업자27 | C31: 118.7129165 | D31: 117.3436787 | E31: - | F31: - | G31: - | H31: - | I31: 102.464628 | J31: - | K31: 103.1492469 | L31: - | M31: - | N31: - | O31: 110.4176175
B32: 사업자28 | C32: - | D32: - | E32: - | F32: - | G32: - | H32: - | I32: 113.5508394 | J32: - | K32: 124.789357 | L32: - | M32: - | N32: - | O32: 119.1700982
B33: 평균 | C33: 107.4680814 | D33: 100.8733785 | E33: - | F33: - | G33: - | H33: - | I33: 105.5330467 | J33: - | K33: 97.63712036 | L33: - | M33: - | N33: - | O33: 102.9065209

Sheet 사업자별 자발적DR 참여 실적
B2: ㅇ 자발적DR 입찰량
B3: 연 | C3: 2024 | D3: 2025 | E3: 2025 | F3: 2025 | G3: 2025 | H3: 2025 | I3: 2025 | J3: 2025 | K3: 2025 | L3: 2025 | M3: 2025 | N3: 2025
B4: 월 | C4: 12 | D4: 1 | E4: 2 | F4: 3 | G4: 4 | H4: 5 | I4: 6 | J4: 7 | K4: 8 | L4: 9 | M4: 10 | N4: 11 | O4: 합계
B5: 사업자01 | C5: 19318.1 | D5: 6674.7 | E5: 4448.6 | F5: 22950 | G5: 18276.8 | H5: 21167.9 | I5: 16546.2 | J5: 40317.4 | K5: 20600.5 | O5: =SUM(C5:N5) -> 170300.2
B6: 사업자02 | C6: 0 | D6: 0 | E6: 0 | F6: 0 | G6: 0 | H6: 0 | I6: 0 | J6: 0 | K6: 0 | O6: 0
B7: 사업자03 | C7: 12375.3 | D7: 6507.7 | E7: 5545.1 | F7: 6997.5 | G7: 7467.1 | H7: 8161.7 | I7: 10421.8 | J7: 13404.3 | K7: 13468.2 | O7: 84348.7
B8: 사업자04 | C8: 80 | D8: 635 | E8: 28531 | F8: 1946 | G8: 46 | H8: 98 | I8: 0 | J8: 0 | K8: 0 | O8: 31336
B9: 사업자05 | C9: 0 | D9: 0 | E9: 0 | F9: 0 | G9: 0 | H9: 0 | I9: 0 | J9: 0 | K9: 0 | O9: 0
B10: 사업자06 | C10: 2198 | D10: 2002.6 | E10: 2095 | F10: 4101 | G10: 4874 | H10: 3480 | I10: 1598 | J10: 2676 | K10: 1964 | O10: 24988.6
B11: 사업자07 | C11: 30190.3 | D11: 36267.5 | E11: 21243.2 | F11: 40528.9 | G11: 30920.3 | H11: 26972.9 | I11: 28502 | J11: 43758.3 | K11: 21609.7 | O11: 279993.1
B12: 사업자08 | C12: 27 | D12: 7 | E12: 21 | F12: 23 | G12: 22 | H12: 10 | I12: 0 | J12: 31.4 | K12: 0 | O12: 141.4
B13: 사업자09 | C13: 15423 | D13: 12910 | E13: 18320 | F13: 16223 | G13: 16168 | H13: 18053 | I13: 19249 | J13: 31245 | K13: 27207 | O13: 174798
B14: 사업자10 | C14: 0 | D14: 0 | E14: 0 | F14: 0 | G14: 0 | H14: 0 | I14: 0 | J14: 0 | K14: 0 | O14: 0
B15: 사업자11 | C15: 1309.9 | D15: 543.4 | E15: 758 | F15: 599.5 | G15: 921 | H15: 720 | I15: 585 | J15: 1011.6 | K15: 1247 | O15: 7695.4
B16: 사업자12 | C16: 1 | D16: 0 | E16: 0 | F16: 0 | G16: 0 | H16: 0 | I16: 0 | J16: 4 | K16: 0 | O16: 5
B17: 사업자13 | C17: 371.1 | D17: 326.4 | E17: 131.1 | F17: 338 | G17: 160.5 | H17: 115.2 | I17: 130.2 | J17: 204 | K17: 260.6 | O17: 2037.1
B18: 사업자14 | C18: 0 | D18: 0 | E18: 0 | F18: 0 | G18: 0 | H18: 0 | I18: 0 | J18: 0 | K18: 0 | O18: 0
B19: 사업자15 | C19: 1383 | D19: 769 | E19: 473 | F19: 775 | G19: 388 | H19: 128 | I19: 909 | J19: 3290.4 | K19: 1458.2 | O19: 9573.6
B20: 사업자16 | C20: 1983.9 | D20: 977.6 | E20: 825.6 | F20: 552 | G20: 2518.4 | H20: 789.4 | I20: 600.5 | J20: 1500.4 | K20: 277.6 | O20: 10025.4
B21: 사업자17 | C21: 8.5 | D21: 60.6 | E21: 4.1 | F21: 5.9 | G21: 7.3 | H21: 4 | I21: 17.8 | J21: 59.4 | K21: 77.2 | O21: 244.8
B22: 사업자18 | C22: 65 | D22: 55 | E22: 14 | F22: 10 | G22: 52 | H22: 26 | I22: 59 | J22: 94 | K22: 54 | O22: 429
B23: 사업자19 | C23: 0 | D23: 0 | E23: 0 | F23: 0 | G23: 0 | H23: 0 | I23: 0 | J23: 0 | K23: 0 | O23: 0
B24: 사업자20 | C24: 3104 | D24: 2093 | E24: 3548 | F24: 6008 | G24: 5581 | H24: 3572 | I24: 3184 | J24: 6979.9 | K24: 6406.9 | O24: 40476.8
B25: 사업자21 | C25: 1750.5 | D25: 851.7 | E25: 673.6 | F25: 509.4 | G25: 603.4 | H25: 847.6 | I25: 1417.6 | J25: 4501.2 | K25: 2688.2 | O25: 13843.2
B26: 사업자22 | C26: 0 | D26: 0 | E26: 0 | F26: 0 | G26: 0 | H26: 0 | I26: 0 | J26: 0 | K26: 0 | O26: 0
B27: 사업자23 | C27: 3884 | D27: 3753 | E27: 1117 | F27: 6636 | G27: 422 | H27: 420 | I27: 498 | J27: 2872 | K27: 2382 | O27: 21984
B28: 사업자24 | C28: 0 | D28: 24 | E28: 45.5 | F28: 21.5 | G28: 1444 | H28: 24 | I28: 42.5 | J28: 2385.5 | K28: 1285.5 | O28: 5272.5
B29: 사업자25 | C29: 0 | D29: 0 | E29: 0 | F29: 0 | G29: 0 | H29: 0 | I29: 0 | J29: 0 | K29: 0 | O29: 0
B30: 사업자26 | C30: 0 | D30: 0 | E30: 0 | F30: 0 | G30: 0 | H30: 0 | I30: 0 | J30: 0 | K30: 0 | O30: 0
B31: 사업자27 | C31: 35.9 | D31: 0 | E31: 0 | F31: 0 | G31: 0 | H31: 0 | I31: 0 | J31: 0 | K31: 0 | O31: 35.9
B32: 사업자28 | I32: 0 | J32: 0 | K32: 0 | O32: 0
B33: 합계 | C33: 93508.5 | D33: 74458.2 | E33: 87793.8 | F33: 108224.7 | G33: 89871.8 | H33: 84589.7 | I33: 83760.6 | J33: =SUM(J5:J31) -> 154334.8 | K33: 100986.6 | L33: 0 | M33: 0 | N33: 0 | O33: =SUM(C33:N33) -> 877528.7
B35: ㅇ 자발적DR 낙찰량
B36: 연 | C36: 2024 | D36: 2025 | E36: 2025 | F36: 2025 | G36: 2025 | H36: 2025 | I36: 2025 | J36: 2025 | K36: 2025 | L36: 2025 | M36: 2025 | N36: 2025
B37: 월 | C37: 12 | D37: 1 | E37: 2 | F37: 3 | G37: 4 | H37: 5 | I37: 6 | J37: 7 | K37: 8 | L37: 9 | M37: 10 | N37: 11 | O37: 합계
B38: 사업자01 | C38: 394.438 | D38: 1287.9 | E38: 476.138 | F38: 3702.228 | G38: 1657.204 | H38: 2337.279 | I38: 477.631 | J38: 6604.429 | K38: 4807.39 | O38: =SUM(C38:N38) -> 21744.637
B39: 사업자02 | C39: 0 | D39: 0 | E39: 0 | F39: 0 | G39: 0 | H39: 0 | I39: 0 | J39: 0 | K39: 0 | O39: =SUM(C39:N39) -> 0
B40: 사업자03 | C40: 629.938 | D40: 1096.569 | E40: 397.268 | F40: 918.054 | G40: 1036.108 | H40: 736.4 | I40: 584.269 | J40: 3384.685 | K40: 4886.86 | O40: 13670.151
B41: 사업자04 | C41: 0 | D41: 105 | E41: 340 | F41: 63 | G41: 27 | H41: 7 | I41: 0 | J41: 0 | K41: 0 | O41: 542
B42: 사업자05 | C42: 0 | D42: 0 | E42: 0 | F42: 0 | G42: 0 | H42: 0 | I42: 0 | J42: 0 | K42: 0 | O42: 0
B43: 사업자06 | C43: 97 | D43: 440.869 | E43: 135 | F43: 856 | G43: 403 | H43: 718 | I43: 0 | J43: 580 | K43: 892 | O43: 4121.869
B44: 사업자07 | C44: 2282.112 | D44: 8814.109 | E44: 2827.462 | F44: 11490.948 | G44: 5243.643 | H44: 3934 | I44: 3718.538 | J44: 16823.553 | K44: 9134.699 | O44: 64269.064
B45: 사업자08 | C45: 1 | D45: 0 | E45: 0 | F45: 0 | G45: 3 | H45: 2 | I45: 0 | J45: 7 | K45: 0 | O45: 13
B46: 사업자09 | C46: 539 | D46: 1792 | E46: 687 | F46: 1683 | G46: 961.2 | H46: 819.9 | I46: 1045.001 | J46: 5325 | K46: 6194 | O46: 19046.101
B47: 사업자10 | C47: 0 | D47: 0 | E47: 0 | F47: 0 | G47: 0 | H47: 0 | I47: 0 | J47: 0 | K47: 0 | O47: 0
B48: 사업자11 | C48: 22.244 | D48: 30.7 | E48: 18 | F48: 129 | G48: 23 | H48: 7 | I48: 17 | J48: 121.716 | K48: 270.184 | O48: 638.844
B49: 사업자12 | C49: 0 | D49: 0 | E49: 0 | F49: 0 | G49: 0 | H49: 0 | I49: 0 | J49: 3 | K49: 0 | O49: 3
B50: 사업자13 | C50: 5.369 | D50: 21.134 | E50: 1.584 | F50: 2.945 | G50: 1.845 | H50: 2 | I50: 0 | J50: 28.793 | K50: 40.775 | O50: 104.445
B51: 사업자14 | C51: 0 | D51: 0 | E51: 0 | F51: 0 | G51: 0 | H51: 0 | I51: 0 | J51: 0 | K51: 0 | O51: 0
B52: 사업자15 | C52: 52.6 | D52: 72.856 | E52: 20 | F52: 13 | G52: 26 | H52: 0 | I52: 49 | J52: 558.272 | K52: 268.1 | O52: 1059.828
B53: 사업자16 | C53: 26.088 | D53: 491.64 | E53: 22.681 | F53: 45.128 | G53: 66.6 | H53: 111.6 | I53: 11.993 | J53: 128.982 | K53: 95.424 | O53: 1000.136
B54: 사업자17 | C54: 0 | D54: 8.687 | E54: 0.2 | F54: 0 | G54: 0 | H54: 0 | I54: 0 | J54: 5.826 | K54: 13.161 | O54: 27.874
B55: 사업자18 | C55: 5.071 | D55: 4.833 | E55: 1.667 | F55: 1.497 | G55: 5.4 | H55: 0 | I55: 3.469 | J55: 11.218 | K55: 8 | O55: 41.155
B56: 사업자19 | C56: 0 | D56: 0 | E56: 0 | F56: 0 | G56: 0 | H56: 0 | I56: 0 | J56: 0 | K56: 0 | O56: 0
B57: 사업자20 | C57: 58 | D57: 284 | E57: 160 | F57: 1179 | G57: 464 | H57: 184 | I57: 121 | J57: 1306.261 | K57: 1512.101 | O57: 5268.362
B58: 사업자21 | C58: 127 | D58: 30 | E58: 52 | F58: 13 | G58: 139 | H58: 46 | I58: 122 | J58: 751 | K58: 618 | O58: 1898
B59: 사업자22 | C59: 0 | D59: 0 | E59: 0 | F59: 0 | G59: 0 | H59: 0 | I59: 0 | J59: 0 | K59: 0 | O59: 0
B60: 사업자23 | C60: 24 | D60: 689 | E60: 36 | F60: 798 | G60: 73 | H60: 40 | I60: 58 | J60: 555 | K60: 511 | O60: 2784
B61: 사업자24 | C61: 0 | D61: 0 | E61: 2 | F61: 0 | G61: 48 | H61: 14 | I61: 2 | J61: 246 | K61: 179.5 | O61: 491.5
B62: 사업자25 | C62: 0 | D62: 0 | E62: 0 | F62: 0 | G62: 0 | H62: 0 | I62: 0 | J62: 0 | K62: 0 | O62: 0
B63: 사업자26 | C63: 0 | D63: 0 | E63: 0 | F63: 0 | G63: 0 | H63: 0 | I63: 0 | J63: 0 | K63: 0 | O63: 0
B64: 사업자27 | C64: 0.769 | D64: 0 | E64: 0 | F64: 0 | G64: 0 | H64: 0 | I64: 0 | J64: 0 | K64: 0 | O64: 0.769
B65: 사업자28 | I65: 0 | J65: 0 | K65: 0 | O65: 0
B66: 합계 | C66: 4264.629 | D66: 15169.297 | E66: 5177 | F66: 20894.8 | G66: 10178 | H66: 8959.179 | I66: 6209.901 | J66: =SUM(J38:J64) -> 36440.735 | K66: 29431.194 | L66: 0 | M66: 0 | N66: 0 | O66: 136724.735
B68: ㅇ 자발적DR 감축량
B69: 연 | C69: 2024 | D69: 2025 | E69: 2025 | F69: 2025 | G69: 2025 | H69: 2025 | I69: 2025 | J69: 2025 | K69: 2025 | L69: 2025 | M69: 2025 | N69: 2025
B70: 월 | C70: 12 | D70: 1 | E70: 2 | F70: 3 | G70: 4 | H70: 5 | I70: 6 | J70: 7 | K70: 8 | L70: 9 | M70: 10 | N70: 11 | O70: 합계
B71: 사업자01 | C71: 571.138 | D71: 2216.602 | E71: 679.645 | F71: 4691.865 | G71: 2506.783 | H71: 4159.892 | I71: 886.493 | J71: 8919.641 | K71: 7508.915 | O71: =SUM(C71:N71) -> 32140.974
B72: 사업자02 | C72: 0 | D72: 0 | E72: 0 | F72: 0 | G72: 0 | H72: 0 | I72: 0 | J72: 0 | K72: 0 | O72: =SUM(C72:N72) -> 0
B73: 사업자03 | C73: 774.377 | D73: 1492.823 | E73: 528.061 | F73: 1253.484 | G73: 1269.913 | H73: 1016.768 | I73: 847.64 | J73: 4190.536 | K73: 5654.441 | O73: 17028.043
B74: 사업자04 | C74: 0 | D74: 196.436 | E74: 645.968 | F74: 85.549 | G74: 37.594 | H74: 8.012 | I74: 0 | J74: 0 | K74: 0 | O74: 973.559
B75: 사업자05 | C75: 0 | D75: 0 | E75: 0 | F75: 0 | G75: 0 | H75: 0 | I75: 0 | J75: 0 | K75: 0 | O75: 0
B76: 사업자06 | C76: 147.703 | D76: 489.982 | E76: 191.945 | F76: 965.655 | G76: 508.983 | H76: 693.702 | I76: 0 | J76: 779.385 | K76: 1128.106 | O76: 4905.461
B77: 사업자07 | C77: 3781.146 | D77: 12405.319 | E77: 3864.751 | F77: 21727.485 | G77: 8653.309 | H77: 5826.382 | I77: 5843.596 | J77: 21937.734 | K77: 14948.014 | O77: 98987.736
B78: 사업자08 | C78: 0.857 | D78: 0 | E78: 0 | F78: 0 | G78: 4.336 | H78: 3.013 | I78: 0 | J78: 7.972 | K78: 0 | O78: 16.178
B79: 사업자09 | C79: 648.353 | D79: 2231.507 | E79: 767.552 | F79: 2326.159 | G79: 1215.171 | H79: 1058.42 | I79: 1249.609 | J79: 6197.736 | K79: 8004.101 | O79: 23698.608
B80: 사업자10 | C80: 0 | D80: 0 | E80: 0 | F80: 0 | G80: 0 | H80: 0 | I80: 0 | J80: 0 | K80: 0 | O80: 0
B81: 사업자11 | C81: 24.589 | D81: 38.152 | E81: 21.964 | F81: 161.966 | G81: 27.868 | H81: 8.432 | I81: 21.038 | J81: 149.13 | K81: 337.281 | O81: 790.42
B82: 사업자12 | C82: 0 | D82: 0 | E82: 0 | F82: 0 | G82: 0 | H82: 0 | I82: 0 | J82: 0.363 | K82: 0 | O82: 0.363
B83: 사업자13 | C83: 8.848 | D83: 46.075 | E83: 2.08 | F83: 3.088 | G83: 2.452 | H83: 1.733 | I83: 0 | J83: 31.354 | K83: 51.106 | O83: 146.736
B84: 사업자14 | C84: 0 | D84: 0 | E84: 0 | F84: 0 | G84: 0 | H84: 0 | I84: 0 | J84: 0 | K84: 0 | O84: 0
B85: 사업자15 | C85: 90.306 | D85: 100.507 | E85: 23.74 | F85: 18.2 | G85: 29.882 | H85: 0 | I85: 57.276 | J85: 636.415 | K85: 314.753 | O85: 1271.079
B86: 사업자16 | C86: 46.662 | D86: 653.284 | E86: 27.593 | F86: 53.961 | G86: 76.373 | H86: 129.193 | I86: 35.396 | J86: 104.918 | K86: 146.493 | O86: 1273.873
B87: 사업자17 | C87: 0 | D87: 8.137 | E87: 0.186 | F87: 0 | G87: 0 | H87: 0 | I87: 0 | J87: 9.145 | K87: 20.09 | O87: 37.558
B88: 사업자18 | C88: 8.372 | D88: 9.357 | E88: 1.383 | F88: 3.366 | G88: 7.2 | H88: 0 | I88: 5.254 | J88: 16.306 | K88: 6.643 | O88: 57.881
B89: 사업자19 | C89: 0 | D89: 0 | E89: 0 | F89: 0 | G89: 0 | H89: 0 | I89: 0 | J89: 0 | K89: 0 | O89: 0
B90: 사업자20 | C90: 72.985 | D90: 346.779 | E90: 198.259 | F90: 1358.076 | G90: 548.5 | H90: 229.288 | I90: 172.024 | J90: 1599.001 | K90: 1995.112 | O90: 6520.024
B91: 사업자21 | C91: 152.541 | D91: 38.032 | E91: 61.825 | F91: 19.788 | G91: 180.064 | H91: 47.25 | I91: 152.054 | J91: 915.59 | K91: 770.051 | O91: 2337.195
B92: 사업자22 | C92: 0 | D92: 0 | E92: 0 | F92: 0 | G92: 0 | H92: 0 | I92: 0 | J92: 0 | K92: 0 | O92: 0
B93: 사업자23 | C93: 30.644 | D93: 858.985 | E93: 52.889 | F93: 1325.014 | G93: 107.961 | H93: 47.519 | I93: 73.447 | J93: 614.196 | K93: 791.091 | O93: 3901.746
B94: 사업자24 | C94: 0 | D94: 0 | E94: 2.563 | F94: 0 | G94: 73.231 | H94: 8.238 | I94: 3.972 | J94: 351.319 | K94: 287.222 | O94: 726.545
B95: 사업자25 | C95: 0 | D95: 0 | E95: 0 | F95: 0 | G95: 0 | H95: 0 | I95: 0 | J95: 0 | K95: 0 | O95: 0
B96: 사업자26 | C96: 0 | D96: 0 | E96: 0 | F96: 0 | G96: 0 | H96: 0 | I96: 0 | J96: 0 | K96: 0 | O96: 0
B97: 사업자27 | C97: 1.193 | D97: 0 | E97: 0 | F97: 0 | G97: 0 | H97: 0 | I97: 0 | J97: 0 | K97: 0 | O97: 1.193
B98: 사업자28 | C98: 0 | D98: 0 | E98: 0 | F98: 0 | G98: 0 | H98: 0 | I98: 0 | J98: 0 | K98: 0 | O98: 0
B99: 합계 | C99: 6359.714 | D99: 21131.977 | E99: 7070.404 | F99: 33993.656 | G99: 15249.62 | H99: 13435.15 | I99: 9332.616 | J99: =SUM(J71:J97) -> 46460.741 | K99: 41963.419 | L99: 0 | M99: 0 | N99: 0 | O99: 194997.297
B101: ㅇ 자발적DR 감축이행률
B102: 연 | C102: 2024 | D102: 2025 | E102: 2025 | F102: 2025 | G102: 2025 | H102: 2025 | I102: 2025 | J102: 2025 | K102: 2025 | L102: 2025 | M102: 2025 | N102: 2025
B103: 월 | C103: 12 | D103: 1 | E103: 2 | F103: 3 | G103: 4 | H103: 5 | I103: 6 | J103: 7 | K103: 8 | L103: 9 | M103: 10 | N103: 11 | O103: 평균
B104: 사업자01 | C104: =IFERROR(C71/C38*100,"-") -> 144.797915 | D104: 172.1097911 | E104: 142.7411801 | F104: 126.7308496 | G104: 151.2658067 | H104: 177.9801213 | I104: 185.6020652 | J104: 135.0554454 | K104: 156.1952536 | L104: - | M104: - | N104: - | O104: 147.8110396
B105: 사업자02 | C105: =IFERROR(C72/C39*100,"-") -> - | D105: - | E105: - | F105: - | G105: - | H105: - | I105: - | J105: - | K105: - | L105: - | M105: - | N105: - | O105: -
B106: 사업자03 | C106: =IFERROR(C73/C40*100,"-") -> 122.9290819 | D106: 136.1358018 | E106: 132.9231149 | F106: 136.5370664 | G106: 122.5656978 | H106: 138.0727865 | I106: 145.0770108 | J106: 123.8087444 | K106: 115.7070389 | L106: - | M106: - | N106: - | O106: 124.5636789
B107: 사업자04 | C107: =IFERROR(C74/C41*100,"-") -> - | D107: 187.0819048 | E107: 189.9905882 | F107: 135.7920635 | G107: 139.237037 | H107: 114.4571429 | I107: - | J107: - | K107: - | L107: - | M107: - | N107: - | O107: 179.6234317
B108: 사업자05 | C108: =IFERROR(C75/C42*100,"-") -> - | D108: - | E108: - | F108: - | G108: - | H108: - | I108: - | J108: - | K108: - | L108: - | M108: - | N108: - | O108: -
B109: 사업자06 | C109: =IFERROR(C76/C43*100,"-") -> 152.271134 | D109: 111.1400439 | E109: 142.1814815 | F109: 112.8101636 | G109: 126.2985112 | H109: 96.61587744 | I109: - | J109: 134.3767241 | K109: 126.4692825 | L109: - | M109: - | N109: - | O109: 119.0105993
B110: 사업자07 | C110: =IFERROR(C77/C44*100,"-") -> 165.686259 | D110: 140.7438801 | E110: 136.6862225 | F110: 189.0834855 | G110: 165.0247547 | H110: 148.1032537 | I110: 157.1476747 | J110: 130.3989353 | K110: 163.6399185 | L110: - | M110: - | N110: - | O110: 154.0208147
B111: 사업자08 | C111: =IFERROR(C78/C45*100,"-") -> 85.7 | D111: - | E111: - | F111: - | G111: 144.5333333 | H111: 150.65 | I111: - | J111: 113.8857143 | K111: - | L111: - | M111: - | N111: - | O111: 124.4461538
B112: 사업자09 | C112: =IFERROR(C79/C46*100,"-") -> 120.2881262 | D112: 124.5260603 | E112: 111.725182 | F112: 138.2150327 | G112: 126.4222846 | H112: 129.0913526 | I112: 119.5796942 | J112: 116.3894085 | K112: 129.2234582 | L112: - | M112: - | N112: - | O112: 124.4276086
B113: 사업자10 | C113: =IFERROR(C80/C47*100,"-") -> - | D113: - | E113: - | F113: - | G113: - | H113: - | I113: - | J113: - | K113: - | L113: - | M113: - | N113: - | O113: -
B114: 사업자11 | C114: =IFERROR(C81/C48*100,"-") -> 110.5421687 | D114: 124.2736156 | E114: 122.0222222 | F114: 125.5550388 | G114: 121.1652174 | H114: 120.4571429 | I114: 123.7529412 | J114: 122.5229222 | K114: 124.833817 | L114: - | M114: - | N114: - | O114: 123.7266062
B115: 사업자12 | C115: =IFERROR(C82/C49*100,"-") -> - | D115: - | E115: - | F115: - | G115: - | H115: - | I115: - | J115: 12.1 | K115: - | L115: - | M115: - | N115: - | O115: 12.1
B116: 사업자13 | C116: =IFERROR(C83/C50*100,"-") -> 164.797914 | D116: 218.0136273 | E116: 131.3131313 | F116: 104.8556876 | G116: 132.899729 | H116: 86.65 | I116: - | J116: 108.894523 | K116: 125.3366033 | L116: - | M116: - | N116: - | O116: 140.4911676
B117: 사업자14 | C117: =IFERROR(C84/C51*100,"-") -> - | D117: - | E117: - | F117: - | G117: - | H117: - | I117: - | J117: - | K117: - | L117: - | M117: - | N117: - | O117: -
B118: 사업자15 | C118: =IFERROR(C85/C52*100,"-") -> 171.6844106 | D118: 137.9529483 | E118: 118.7 | F118: 140 | G118: 114.9307692 | H118: - | I118: 116.8897959 | J118: 113.9972988 | K118: 117.4013428 | L118: - | M118: - | N118: - | O118: 119.932574
B119: 사업자16 | C119: =IFERROR(C86/C53*100,"-") -> 178.8638454 | D119: 132.878529 | E119: 121.6568934 | F119: 119.573214 | G119: 114.6741742 | H119: 115.7643369 | I119: 295.138831 | J119: 81.34313315 | K119: 153.5179829 | L119: - | M119: - | N119: - | O119: 127.3699777
B120: 사업자17 | C120: =IFERROR(C87/C54*100,"-") -> - | D120: 93.66870036 | E120: 93 | F120: - | G120: - | H120: - | I120: - | J120: 156.9687607 | K120: 152.6479751 | L120: - | M120: - | N120: - | O120: 134.7420535
B121: 사업자18 | C121: =IFERROR(C88/C55*100,"-") -> 165.0956419 | D121: 193.6064556 | E121: 82.96340732 | F121: 224.8496994 | G121: 133.3333333 | H121: - | I121: 151.4557509 | J121: 145.3556784 | K121: 83.0375 | L121: - | M121: - | N121: - | O121: 140.6414773
B122: 사업자19 | C122: =IFERROR(C89/C56*100,"-") -> - | D122: - | E122: - | F122: - | G122: - | H122: - | I122: - | J122: - | K122: - | L122: - | M122: - | N122: - | O122: -
B123: 사업자20 | C123: =IFERROR(C90/C57*100,"-") -> 125.8362069 | D123: 122.1052817 | E123: 123.911875 | F123: 115.1888041 | G123: 118.2112069 | H123: 124.6130435 | I123: 142.168595 | J123: 122.410529 | K123: 131.9430382 | L123: - | M123: - | N123: - | O123: 123.7580865
B124: 사업자21 | C124: =IFERROR(C91/C58*100,"-") -> 120.1110236 | D124: 126.7733333 | E124: 118.8942308 | F124: 152.2153846 | G124: 129.542446 | H124: 102.7173913 | I124: 124.6344262 | J124: 121.9161119 | K124: 124.6037217 | L124: - | M124: - | N124: - | O124: 123.1398841
B125: 사업자22 | C125: =IFERROR(C92/C59*100,"-") -> - | D125: - | E125: - | F125: - | G125: - | H125: - | I125: - | J125: - | K125: - | L125: - | M125: - | N125: - | O125: -
B126: 사업자23 | C126: =IFERROR(C93/C60*100,"-") -> 127.6833333 | D126: 124.6712627 | E126: 146.9138889 | F126: 166.0418546 | G126: 147.8917808 | H126: 118.7975 | I126: 126.6327586 | J126: 110.6659459 | K126: 154.8123288 | L126: - | M126: - | N126: - | O126: 140.1489224
B127: 사업자24 | C127: =IFERROR(C94/C61*100,"-") -> - | D127: - | E127: 128.15 | F127: - | G127: 152.5645833 | H127: 58.84285714 | I127: 198.6 | J127: 142.8126016 | K127: 160.0122563 | L127: - | M127: - | N127: - | O127: 147.8219736
B128: 사업자25 | C128: =IFERROR(C95/C62*100,"-") -> - | D128: - | E128: - | F128: - | G128: - | H128: - | I128: - | J128: - | K128: - | L128: - | M128: - | N128: - | O128: -
B129: 사업자26 | C129: =IFERROR(C96/C63*100,"-") -> - | D129: - | E129: - | F129: - | G129: - | H129: - | I129: - | J129: - | K129: - | L129: - | M129: - | N129: - | O129: -
B130: 사업자27 | C130: =IFERROR(C97/C64*100,"-") -> 155.136541 | D130: - | E130: - | F130: - | G130: - | H130: - | I130: - | J130: - | K130: - | L130: - | M130: - | N130: - | O130: 155.136541
B131: 사업자28
B132: 평균 | C132: =IFERROR(C99/C66*100,"-") -> 149.1270167 | D132: 139.3075566 | E132: 136.5733823 | F132: 162.6895496 | G132: 149.8292395 | H132: 149.9596113 | I132: 150.2860674 | J132: 127.4967176 | K132: 142.5814359 | L132: - | M132: - | N132: - | O132: 142.620351

Sheet 사업자별 거래제한 및 입찰제한 내역
B2: ㅇ 신뢰성DR 이행률 80% 미만 횟수 및 거래제한 자원 수
B3: 이행률 80% 미만 횟수 | P3: 거래제한 자원 수
B4: 연 | C4: 2024 | D4: 2025 | E4: 2025 | F4: 2025 | G4: 2025 | H4: 2025 | I4: 2025 | J4: 2025 | K4: 2025 | L4: 2025 | M4: 2025 | N4: 2025
B5: 월 | C5: 12 | D5: 1 | E5: 2 | F5: 3 | G5: 4 | H5: 5 | I5: 6 | J5: 7 | K5: 8 | L5: 9 | M5: 10 | N5: 11 | O5: 합계
B6: 사업자01 | C6: 0 | D6: 0 | E6: 0 | F6: 0 | G6: 0 | H6: 0 | I6: 0 | J6: 0 | K6: 2 | O6: =SUM(C6:N6) -> 2 | P6: 0
B7: 사업자02 | C7: 0 | D7: 0 | E7: 0 | F7: 0 | G7: 0 | H7: 0 | I7: 0 | J7: 0 | K7: 1 | O7: =SUM(C7:N7) -> 1 | P7: 0
B8: 사업자03 | C8: 0 | D8: 0 | E8: 0 | F8: 0 | G8: 0 | H8: 0 | I8: 2 | J8: 0 | K8: 0 | O8: 2 | P8: 0
B9: 사업자04 | C9: 1 | D9: 1 | E9: 0 | F9: 0 | G9: 0 | H9: 0 | I9: 0 | J9: 0 | K9: 0 | O9: 2 | P9: 0
B10: 사업자05 | C10: 0 | D10: 1 | E10: 0 | F10: 0 | G10: 0 | H10: 0 | I10: 2 | J10: 0 | K10: 0 | O10: 3 | P10: 0
B11: 사업자06 | C11: 0 | D11: 0 | E11: 0 | F11: 0 | G11: 0 | H11: 0 | I11: 0 | J11: 0 | K11: 0 | O11: 0 | P11: 0
B12: 사업자07 | C12: 0 | D12: 0 | E12: 0 | F12: 0 | G12: 0 | H12: 0 | I12: 0 | J12: 0 | K12: 0 | O12: 0 | P12: 0
B13: 사업자08 | C13: 0 | D13: 0 | E13: 0 | F13: 0 | G13: 0 | H13: 0 | I13: 2 | J13: 0 | K13: 0 | O13: 2 | P13: 0
B14: 사업자09 | C14: 0 | D14: 0 | E14: 0 | F14: 0 | G14: 0 | H14: 0 | I14: 0 | J14: 0 | K14: 0 | O14: 0 | P14: 0
B15: 사업자10 | C15: 0 | D15: 0 | E15: 0 | F15: 0 | G15: 0 | H15: 0 | I15: 1 | J15: 0 | K15: 0 | O15: 1 | P15: 0
B16: 사업자11 | C16: 0 | D16: 1 | E16: 0 | F16: 0 | G16: 0 | H16: 0 | I16: 0 | J16: 0 | K16: 0 | O16: 1 | P16: 0
B17: 사업자12 | C17: 0 | D17: 0 | E17: 0 | F17: 0 | G17: 0 | H17: 0 | I17: 0 | J17: 0 | K17: 0 | O17: 0 | P17: 0
B18: 사업자13 | C18: 0 | D18: 0 | E18: 0 | F18: 0 | G18: 0 | H18: 0 | I18: 2 | J18: 0 | K18: 0 | O18: 2 | P18: 0
B19: 사업자14 | C19: 0 | D19: 1 | E19: 0 | F19: 0 | G19: 0 | H19: 0 | I19: 2 | J19: 0 | K19: 0 | O19: 3 | P19: 0
B20: 사업자15 | C20: 0 | D20: 0 | E20: 0 | F20: 0 | G20: 0 | H20: 0 | I20: 1 | J20: 0 | K20: 1 | O20: 2 | P20: 0
B21: 사업자16 | C21: 0 | D21: 0 | E21: 0 | F21: 0 | G21: 0 | H21: 0 | I21: 1 | J21: 0 | K21: 1 | O21: 2 | P21: 0
B22: 사업자17 | C22: 0 | D22: 0 | E22: 0 | F22: 0 | G22: 0 | H22: 0 | I22: 4 | J22: 0 | K22: 1 | O22: 5 | P22: 0
B23: 사업자18 | C23: 0 | D23: 1 | E23: 0 | F23: 0 | G23: 0 | H23: 0 | I23: 2 | J23: 0 | K23: 1 | O23: 4 | P23: 0
B24: 사업자19 | C24: 0 | D24: 0 | E24: 0 | F24: 0 | G24: 0 | H24: 0 | I24: 2 | J24: 0 | K24: 1 | O24: 3 | P24: 0
B25: 사업자20 | C25: 0 | D25: 0 | E25: 0 | F25: 0 | G25: 0 | H25: 0 | I25: 1 | J25: 0 | K25: 1 | O25: 2 | P25: 0
B26: 사업자21 | C26: 0 | D26: 0 | E26: 0 | F26: 0 | G26: 0 | H26: 0 | I26: 1 | J26: 0 | K26: 0 | O26: 1 | P26: 0
B27: 사업자22 | C27: 0 | D27: 0 | E27: 0 | F27: 0 | G27: 0 | H27: 0 | I27: 0 | J27: 0 | K27: 1 | O27: 1 | P27: 0
B28: 사업자23 | C28: 0 | D28: 0 | E28: 0 | F28: 0 | G28: 0 | H28: 0 | I28: 0 | J28: 0 | K28: 0 | O28: 0 | P28: 0
B29: 사업자24 | C29: 0 | D29: 0 | E29: 0 | F29: 0 | G29: 0 | H29: 0 | I29: 2 | J29: 0 | K29: 0 | O29: 2 | P29: 0
B30: 사업자25 | C30: 0 | D30: 0 | E30: 0 | F30: 0 | G30: 0 | H30: 0 | I30: 0 | J30: 0 | K30: 0 | O30: 0 | P30: 0
B31: 사업자26 | C31: 0 | D31: 0 | E31: 0 | F31: 0 | G31: 0 | H31: 0 | I31: 0 | J31: 0 | K31: 1 | O31: 1 | P31: 0
B32: 사업자27 | C32: 0 | D32: 0 | E32: 0 | F32: 0 | G32: 0 | H32: 0 | I32: 0 | J32: 0 | K32: 0 | O32: 0 | P32: 0
B33: 사업자28 | C33: 0 | D33: 0 | E33: 0 | F33: 0 | G33: 0 | H33: 0 | I33: 0 | J33: 0 | K33: 0 | O33: =SUM(C33:N33) -> 0 | P33: 0
B34: 합계 | C34: 1 | D34: 5 | E34: 0 | F34: 0 | G34: 0 | H34: 0 | I34: 25 | J34: 0 | K34: 11 | O34: 42 | P34: =SUM(P6:P33) -> 0
B36: ㅇ 자발적DR 이행률 80% 미만 횟수 및 입찰제한 자원 수
B37: 이행률 80% 미만 횟수 | P37: 입찰제한 자원 수
B38: 연 | C38: 2024 | D38: 2025 | E38: 2025 | F38: 2025 | G38: 2025 | H38: 2025 | I38: 2025 | J38: 2025 | K38: 2025 | L38: 2025 | M38: 2025 | N38: 2025
B39: 월 | C39: 12 | D39: 1 | E39: 2 | F39: 3 | G39: 4 | H39: 5 | I39: 6 | J39: 7 | K39: 8 | L39: 9 | M39: 10 | N39: 11 | O39: 합계
B40: 사업자01 | C40: 0 | D40: 0 | E40: 0 | F40: 0 | G40: 0 | H40: 0 | I40: 0 | J40: 3 | K40: 0 | O40: =SUM(C40:N40) -> 3 | P40: 1
B41: 사업자02 | C41: 0 | D41: 0 | E41: 0 | F41: 0 | G41: 0 | H41: 0 | I41: 0 | J41: 0 | K41: 0 | O41: =SUM(C41:N41) -> 0 | P41: 0
B42: 사업자03 | C42: 1 | D42: 0 | E42: 0 | F42: 0 | G42: 1 | H42: 0 | I42: 1 | J42: 0 | K42: 0 | O42: 3 | P42: 0
B43: 사업자04 | C43: 0 | D43: 0 | E43: 0 | F43: 0 | G43: 1 | H43: 0 | I43: 0 | J43: 0 | K43: 0 | O43: 1 | P43: 0
B44: 사업자05 | C44: 0 | D44: 0 | E44: 0 | F44: 0 | G44: 0 | H44: 0 | I44: 0 | J44: 0 | K44: 0 | O44: 0 | P44: 0
B45: 사업자06 | C45: 0 | D45: 0 | E45: 0 | F45: 0 | G45: 0 | H45: 0 | I45: 0 | J45: 0 | K45: 0 | O45: 0 | P45: 0
B46: 사업자07 | C46: 0 | D46: 0 | E46: 1 | F46: 0 | G46: 0 | H46: 1 | I46: 0 | J46: 0 | K46: 0 | O46: 2 | P46: 0
B47: 사업자08 | C47: 0 | D47: 0 | E47: 0 | F47: 0 | G47: 0 | H47: 0 | I47: 0 | J47: 1 | K47: 0 | O47: 1 | P47: 0
B48: 사업자09 | C48: 0 | D48: 0 | E48: 0 | F48: 0 | G48: 0 | H48: 0 | I48: 0 | J48: 0 | K48: 0 | O48: 0 | P48: 0
B49: 사업자10 | C49: 0 | D49: 0 | E49: 0 | F49: 0 | G49: 0 | H49: 0 | I49: 0 | J49: 0 | K49: 0 | O49: 0 | P49: 0
B50: 사업자11 | C50: 0 | D50: 0 | E50: 0 | F50: 0 | G50: 0 | H50: 0 | I50: 0 | J50: 0 | K50: 0 | O50: 0 | P50: 0
B51: 사업자12 | C51: 0 | D51: 0 | E51: 0 | F51: 0 | G51: 0 | H51: 0 | I51: 0 | J51: 1 | K51: 0 | O51: 1 | P51: 0
B52: 사업자13 | C52: 0 | D52: 0 | E52: 0 | F52: 0 | G52: 0 | H52: 1 | I52: 0 | J52: 0 | K52: 0 | O52: 1 | P52: 0
B53: 사업자14 | C53: 0 | D53: 0 | E53: 0 | F53: 0 | G53: 0 | H53: 0 | I53: 0 | J53: 0 | K53: 0 | O53: 0 | P53: 0
B54: 사업자15 | C54: 2 | D54: 0 | E54: 0 | F54: 1 | G54: 0 | H54: 0 | I54: 0 | J54: 2 | K54: 2 | O54: 7 | P54: 1
B55: 사업자16 | C55: 2 | D55: 0 | E55: 1 | F55: 0 | G55: 1 | H55: 0 | I55: 0 | J55: 4 | K55: 0 | O55: 8 | P55: 2
B56: 사업자17 | C56: 0 | D56: 1 | E56: 0 | F56: 0 | G56: 0 | H56: 0 | I56: 1 | J56: 0 | K56: 1 | O56: 3 | P56: 0
B57: 사업자18 | C57: 1 | D57: 0 | E57: 0 | F57: 0 | G57: 0 | H57: 0 | I57: 0 | J57: 2 | K57: 0 | O57: 3 | P57: 0
B58: 사업자19 | C58: 0 | D58: 0 | E58: 0 | F58: 0 | G58: 0 | H58: 0 | I58: 0 | J58: 0 | K58: 0 | O58: 0 | P58: 0
B59: 사업자20 | C59: 0 | D59: 0 | E59: 0 | F59: 0 | G59: 0 | H59: 0 | I59: 0 | J59: 0 | K59: 1 | O59: 1 | P59: 0
B60: 사업자21 | C60: 0 | D60: 0 | E60: 0 | F60: 0 | G60: 0 | H60: 0 | I60: 0 | J60: 0 | K60: 0 | O60: 0 | P60: 0
B61: 사업자22 | C61: 0 | D61: 0 | E61: 0 | F61: 0 | G61: 0 | H61: 0 | I61: 0 | J61: 0 | K61: 0 | O61: 0 | P61: 0
B62: 사업자23 | C62: 0 | D62: 0 | E62: 0 | F62: 0 | G62: 0 | H62: 0 | I62: 0 | J62: 1 | K62: 1 | O62: 2 | P62: 0
B63: 사업자24 | C63: 0 | D63: 0 | E63: 0 | F63: 0 | G63: 0 | H63: 1 | I63: 0 | J63: 1 | K63: 0 | O63: 2 | P63: 0
B64: 사업자25 | C64: 0 | D64: 0 | E64: 0 | F64: 0 | G64: 0 | H64: 0 | I64: 0 | J64: 0 | K64: 0 | O64: 0 | P64: 0
B65: 사업자26 | C65: 0 | D65: 0 | E65: 0 | F65: 0 | G65: 0 | H65: 0 | I65: 0 | J65: 0 | K65: 0 | O65: 0 | P65: 0
B66: 사업자27 | C66: 0 | D66: 0 | E66: 0 | F66: 0 | G66: 0 | H66: 0 | I66: 0 | J66: 0 | K66: 0 | O66: 0 | P66: 0
C67: 0 | D67: 0 | E67: 0 | F67: 0 | G67: 0 | H67: 0 | I67: 0 | J67: 0 | K67: 0 | O67: 0 | P67: 0
B68: 합계 | C68: 6 | D68: 1 | E68: 2 | F68: 1 | G68: 3 | H68: 3 | I68: 2 | J68: 15 | K68: 5 | O68: 38 | P68: =SUM(P40:P67) -> 4
